Workbook

Sheet 2024 FALL CALCULATOR
K1: =V13 -> Fall Solutions National Calculator - version 2024-0009-0017
B3: =IF(C22="National", "NATIONAL", IF(C22="CA","CALIFORNIA","WASHINGTON")) -> NATIONAL | C3: =B3& " 2024 FALL SOLUTIONS CALCULATOR" -> NATIONAL 2024 FALL SOLUTIONS CALCULATOR
V5: 2024-0009-0017
V13: ="Fall Solutions National Calculator - version " & V5 -> Fall Solutions National Calculator - version 2024-0009-0017
AL15: TOTAL PURCHASE REBATE
B16: NAME YOUR DRAFT ORDER HERE: | AL16: MINIMUM QTY | AM16: MAXIMUM QTY | AN16: REBATE %
B17: Description: | AL17: 5000 | AM17: 13999 | AN17: 0.03
B18: Dist/DSR: | Z18: ADMIN COLUMNS | AL18: 14000 | AM18: 22499 | AN18: 0.04
B19: MER#: | AL19: 22500 | AM19: 31499 | AN19: 0.05
B20: Last Updated: | AL20: 31500 | AM20: 39999 | AN20: 0.06
B21: Created For: | AL21: 40000 | AM21: 48499 | AN21: 0.08
B22: Region: | C22: National | AL22: 48500 | AM22: 999999.99 | AN22: 0.09
F23: HIDE | G23: HIDE | Y23: HIDE | AA23: HIDE | AL23: HIDE | AM23: HIDE | AN23: HIDE | AO23: HIDE | AP23: HIDE | AQ23: HIDE | AR23: HIDE | AS23: HIDE | AT23: HIDE | AU23: HIDE | AV23: HIDE | AW23: HIDE | AX23: HIDE | AY23: HIDE | AZ23: HIDE
Y24: SELECT REBATE | AA24: PAIRING REBATE | AD24: SPECTICLE FLO LOYALTY BONUS | AG24: MIRACAST | AJ24: LARGE LAWN | AL24: PURCHASE TIER REBATE
B25: REBATE FINDER. (Minimum Program Purchase to receive rebates is $5,000) | C25: PRODUCT NAME | D25: UNIT SIZE | E25: # UNITS | F25: INSEASON PRICE | G25: INSEASON SUBTOTAL | H25: PRICE/ UNIT* | I25: INVOICE SUBTOTAL ($5,000 minimum across NOW/FALL program to receive rebates) | J25: SELECT REBATES**† | K25: PAIRING REBATES**† | L25: SPECTICLE FLO LOYALTY BONUS**† | M25: Specticle Flo Large Lawn User Rebate **† | N25: STRATEGIC PARTNER REBATE/unit **† | O25: PURCHASE TIER REBATE**† | P25: NET PRICE/UNIT (all rebates, incl. purchase tier) | Q25: TOTAL AFTER REBATE | R25: USE RATE / 1,000 FT2 | S25: INTENDED/ ACRE USE RATE | T25: TOTAL ACRES TREATED | U25: COST/ ACRE | V25: COST/ 1,000 FT2 | Y25: Required Qty | Z25: Rebate | AA25: Required Qty | AB25: Qualify? | AC25: Rebate | AD25: Brands Qualifying | AE25: Total Brands/ Specticle Tier | AF25: Specticle Bonus | AL25: Aug - Oct Early Pay Bonus | AM25: Purchase Tier Rebate | AN25: Total must be > $5000 to qualify for rebates | AW25: National Price | AX25: National invoice for rebate calculations
AP26: Specticle FLO Loyalty Bonus Matrix
L27: =IFERROR(_xlfn.XLOOKUP($AE$56,$AP$31:$AP$34,_xlfn.XLOOKUP(AE32,$AQ$27:$AS$27,$AQ$31:$AS$34)),0) -> 0 | O27: =IF(AND(I92<>"",AM92>0),IF(AM92>0.07,AM92,(AM92+0.01)),0) -> 0.04 | AP27: Tiers/Brands | AQ27: 1 | AR27: 2 | AS27: 3
B28: Purchase Tier | C28: Altus (64 fl.oz. bottle), 1-15 | D28: 64 fl oz | F28: =INDEX(Pricing!$E$5:$G$100,MATCH('2024 FALL CALCULATOR'!$C28,Pricing!$A$5:$A$100,0),MATCH($C$22,Pricing!$E$4:$G$4,0)) -> 428.4 | G28: =IF(ISERROR(E28*F28),"",E28*F28) -> 0 | H28: =INDEX(Pricing!$A$5:$D$100,MATCH('2024 FALL CALCULATOR'!$C28,Pricing!$A$5:$A$100,0),MATCH($C$22,Pricing!$A$4:$D$4,0)) -> 428.4 | I28: =IF(ISERROR(E28*H28),0,E28*H28) -> 0 | O28: =IF(OR(AW28 ="",AL28+AM28=0),0,E28*AW28*(AL28+AM28)) -> 0 | P28: =IF(AND(E28<>"",E28>0),(H28-((SUM(J28:M28)+N28*E28+O28)/E28)),"") ->  | Q28: =IF(AND(E28<>"",E28>0), E28*P28,"") ->  | R28: =S28/43.56 -> 0.160697888 | S28: 7 | T28: =IF(AND(TRIM(S28)<>"",TRIM(E28)<>""),(E28*64)/S28,"") ->  | U28: =IF(E28<>0,Q28/T28,0) -> 0 | V28: =U28/43.56 -> 0 | AL28: =IF(AND(E28 <>"",AN$92>=5000,AM$92<=0.07),0.01,0) -> 0 | AM28: =IF(E28 <>"", AM$92,0) -> 0 | AN28: =IF(E28 = "",0,IFERROR(H28*E28,0)) -> 0 | AW28: =INDEX(Pricing!$A$5:$D$100,MATCH('2024 FALL CALCULATOR'!$C28,Pricing!$A$5:$A$100,0),MATCH("National",Pricing!$A$4:$D$4,0)) -> 428.4 | AX28: =AW28*E28 -> 0
B29: Purchase Tier | C29: Altus (64 fl.oz. bottle), 16-31 | D29: 64 fl oz | F29: =INDEX(Pricing!$E$5:$G$100,MATCH('2024 FALL CALCULATOR'!$C29,Pricing!$A$5:$A$100,0),MATCH($C$22,Pricing!$E$4:$G$4,0)) -> 428.4 | G29: =IF(ISERROR(E29*F29),"",E29*F29) -> 0 | H29: =INDEX(Pricing!$A$5:$D$100,MATCH('2024 FALL CALCULATOR'!$C29,Pricing!$A$5:$A$100,0),MATCH($C$22,Pricing!$A$4:$D$4,0)) -> 406.98 | I29: 0 | O29: =IF(OR(AW29 ="",AL29+AM29=0),0,E29*AW29*(AL29+AM29)) -> 0 | Q29: =IF(AND(E29<>"",E29>0), E29*P29,"") ->  | R29: =S29/43.56 -> 0.160697888 | S29: 7 | T29: =IF(AND(TRIM(S29)<>"",TRIM(E29)<>""),(E29*64)/S29,"") ->  | U29: =IF(E29<>0,Q29/T29,0) -> 0 | V29: 0 | AL29: 0 | AM29: 0 | AN29: 0 | AW29: =INDEX(Pricing!$A$5:$D$100,MATCH('2024 FALL CALCULATOR'!$C29,Pricing!$A$5:$A$100,0),MATCH("National",Pricing!$A$4:$D$4,0)) -> 406.98 | AX29: =AW29*E29 -> 0
B30: Purchase Tier | C30: Altus (64 fl.oz. bottle), 32+ | D30: 64 fl oz | F30: =INDEX(Pricing!$E$5:$G$100,MATCH('2024 FALL CALCULATOR'!$C30,Pricing!$A$5:$A$100,0),MATCH($C$22,Pricing!$E$4:$G$4,0)) -> 428.4 | G30: 0 | H30: =INDEX(Pricing!$A$5:$D$100,MATCH('2024 FALL CALCULATOR'!$C30,Pricing!$A$5:$A$100,0),MATCH($C$22,Pricing!$A$4:$D$4,0)) -> 385.56 | I30: 0 | O30: 0 | Q30: =IF(AND(E30<>"",E30>0), E30*P30,"") ->  | R30: =S30/43.56 -> 0.160697888 | S30: 7 | U30: =IF(E30<>0,Q30/T30,0) -> 0 | V30: 0 | AL30: 0 | AM30: 0 | AN30: 0 | AW30: =INDEX(Pricing!$A$5:$D$100,MATCH('2024 FALL CALCULATOR'!$C30,Pricing!$A$5:$A$100,0),MATCH("National",Pricing!$A$4:$D$4,0)) -> 385.56 | AX30: 0
B31: $25 Select for 2+/$75 for 2+ Pairing with 12+ Signature or 24+ Signature XTRA | C31: Banol® | D31: 2.5 gal. bottle | F31: =INDEX(Pricing!$E$5:$G$100,MATCH('2024 FALL CALCULATOR'!$C31,Pricing!$A$5:$A$100,0),MATCH($C$22,Pricing!$E$4:$G$4,0)) -> 1254 | G31: 0 | H31: =INDEX(Pricing!$A$5:$D$100,MATCH('2024 FALL CALCULATOR'!$C31,Pricing!$A$5:$A$100,0),MATCH($C$22,Pricing!$A$4:$D$4,0)) -> 1254 | I31: =IF(ISERROR(E31*H31),0,E31*H31) -> 0 | J31: =IF(OR(E31 ="",E31<Y31,Y31=0),0,E31*Z31) -> 0 | K31: =IF(OR(E31 ="",E31<AA31,AB31="No",AA31=0),0,E31*AC31) -> 0 | O31: 0 | P31: =IF(AND(E31<>"",E31>0),(H31-((SUM(J31:M31)+N31*E31+O31)/E31)),"") ->  | Q31: =IF(AND(E31<>"",E31>0), E31*P31,"") ->  | R31: 2 | S31: =R31*43.56 -> 87.12 | T31: =IF(AND(TRIM(S31)<>"",TRIM(E31)<>""),(E31*319.999849189052)/S31,"") ->  | U31: =IF(E31<>0,Q31/T31,0) -> 0 | V31: =U31/43.56 -> 0 | Y31: 2 | Z31: 25 | AA31: 2 | AB31: =IF(AND(OR((E34+E35)>=AA35,(E54+E55)>=AA55),E31>=AA31),"Yes","No") -> No | AC31: 75 | AL31: 0 | AM31: 0 | AN31: =IF(E31 = "",0,IFERROR(H31*E31,0)) -> 0 | AP31: 1 | AQ31: 0.0025 | AR31: 0.005 | AS31: 0.01 | AW31: =INDEX(Pricing!$A$5:$D$100,MATCH('2024 FALL CALCULATOR'!$C31,Pricing!$A$5:$A$100,0),MATCH("National",Pricing!$A$4:$D$4,0)) -> 1254 | AX31: 0
B32: $10 Select for 8+/up to 4% Loyalty Bonus/Tier | C32: Celsius | D32: 10 oz. bottle | F32: =INDEX(Pricing!$E$5:$G$100,MATCH('2024 FALL CALCULATOR'!$C32,Pricing!$A$5:$A$100,0),MATCH($C$22,Pricing!$E$4:$G$4,0)) -> 128.4 | G32: 0 | H32: =INDEX(Pricing!$A$5:$D$100,MATCH('2024 FALL CALCULATOR'!$C32,Pricing!$A$5:$A$100,0),MATCH($C$22,Pricing!$A$4:$D$4,0)) -> 128.4 | I32: =IF(ISERROR(E32*H32),0,E32*H32) -> 0 | J32: =IF(OR(E32 ="",E32<Y32,Y32=0),0,E32*Z32) -> 0 | L32: =IFERROR(IF(I32*AF32<>0,I32*AF32,0),0) -> 0 | O32: 0 | Q32: =IF(AND(E32<>"",E32>0), E32*P32,"") ->  | R32: =S32/43.56 -> 0.1129476584 | S32: 4.92 | T32: =IF(AND(TRIM(S32)<>"",TRIM(E32)<>""),(E32*10)/S32,"") ->  | U32: =IF(E32<>0,Q32/T32,0) -> 0 | V32: =U32/43.56 -> 0 | Y32: 8 | Z32: 10 | AD32: =IF(E32>=Y32,1,0) -> 0 | AE32: =IFERROR(_xlfn.IFS($AD$32+$AD$33+$AD$53+$AD$63>=3,3,$AD$32+$AD$33+$AD$53+$AD$63=2,2,$AD$32+$AD$33+$AD$53+$AD$63=1,1,$AD$32+$AD$33+$AD$53+$AD$63<=0,0),0) -> 0 | AF32: =IFERROR(IF(E32>=Y32,(_xlfn.XLOOKUP($AE$56,$AP$31:$AP$34,_xlfn.XLOOKUP(AE32,$AQ$27:$AS$27,$AQ$31:$AS$34))),0),0) -> 0 | AL32: 0 | AM32: 0 | AN32: =IF(E32 = "",0,IFERROR(H32*E32,0)) -> 0 | AP32: 7 | AQ32: 0.005 | AR32: 0.01 | AS32: 0.02 | AW32: =INDEX(Pricing!$A$5:$D$100,MATCH('2024 FALL CALCULATOR'!$C32,Pricing!$A$5:$A$100,0),MATCH("National",Pricing!$A$4:$D$4,0)) -> 128.4 | AX32: 0
B33: $10 Select for 8+/up to 4% Loyalty Bonus/Tier | C33: Celsius XTRA | D33: 10 oz. bottle | F33: =INDEX(Pricing!$E$5:$G$100,MATCH('2024 FALL CALCULATOR'!$C33,Pricing!$A$5:$A$100,0),MATCH($C$22,Pricing!$E$4:$G$4,0)) -> 166.4 | G33: 0 | H33: =INDEX(Pricing!$A$5:$D$100,MATCH('2024 FALL CALCULATOR'!$C33,Pricing!$A$5:$A$100,0),MATCH($C$22,Pricing!$A$4:$D$4,0)) -> 166.4 | I33: 0 | J33: =IF(OR(E33 ="",E33<Y33,Y33=0),0,E33*Z33) -> 0 | L33: =IFERROR(IF(I33*AF33<>0,I33*AF33,0),0) -> 0 | O33: 0 | R33: =S33/43.56 -> 0.2295684114 | S33: 10 | T33: =IF(AND(TRIM(S33)<>"",TRIM(E33)<>""),(E33*10)/S33,"") ->  | U33: 0 | V33: 0 | Y33: 8 | Z33: 10 | AD33: =IF(E33>=Y33,1,0) -> 0 | AE33: =IFERROR(_xlfn.IFS($AD$32+$AD$33+$AD$53+$AD$63>=3,3,$AD$32+$AD$33+$AD$53+$AD$63=2,2,$AD$32+$AD$33+$AD$53+$AD$63=1,1,$AD$32+$AD$33+$AD$53+$AD$63<=0,0),0) -> 0 | AF33: =IFERROR(IF(E33>=Y33,(_xlfn.XLOOKUP($AE$56,$AP$31:$AP$34,_xlfn.XLOOKUP(AE33,$AQ$27:$AS$27,$AQ$31:$AS$34))),0),0) -> 0 | AL33: 0 | AM33: 0 | AN33: 0 | AP33: 14 | AQ33: 0.0075 | AR33: 0.015 | AS33: 0.03 | AW33: =INDEX(Pricing!$A$5:$D$100,MATCH('2024 FALL CALCULATOR'!$C33,Pricing!$A$5:$A$100,0),MATCH("National",Pricing!$A$4:$D$4,0)) -> 166.4 | AX33: 0
B34: Purchase Tier | C34: Chipco Signature Stressgard (1-8 units) | D34: 11 lb. bottle | F34: =INDEX(Pricing!$E$5:$G$100,MATCH('2024 FALL CALCULATOR'!$C34,Pricing!$A$5:$A$100,0),MATCH($C$22,Pricing!$E$4:$G$4,0)) -> 392.8 | G34: 0 | H34: =INDEX(Pricing!$A$5:$D$100,MATCH('2024 FALL CALCULATOR'!$C34,Pricing!$A$5:$A$100,0),MATCH($C$22,Pricing!$A$4:$D$4,0)) -> 392.8 | I34: 0 | O34: 0 | R34: 4 | S34: =R34*43.56 -> 174.24 | T34: =IF(AND(TRIM(S34)<>"",TRIM(E34)<>""),(E34*176)/S34,"") ->  | U34: 0 | V34: 0 | AL34: 0 | AM34: 0 | AN34: 0 | AP34: 26 | AQ34: 0.01 | AR34: 0.02 | AS34: 0.04 | AW34: =INDEX(Pricing!$A$5:$D$100,MATCH('2024 FALL CALCULATOR'!$C34,Pricing!$A$5:$A$100,0),MATCH("National",Pricing!$A$4:$D$4,0)) -> 392.8 | AX34: 0
B35: $10 for 12+ with 2+ Banol/Tier | C35: Chipco Signature Stressgard (9+ units) | D35: 11 lb. bottle | F35: =INDEX(Pricing!$E$5:$G$100,MATCH('2024 FALL CALCULATOR'!$C35,Pricing!$A$5:$A$100,0),MATCH($C$22,Pricing!$E$4:$G$4,0)) -> 392.8 | G35: 0 | H35: =INDEX(Pricing!$A$5:$D$100,MATCH('2024 FALL CALCULATOR'!$C35,Pricing!$A$5:$A$100,0),MATCH($C$22,Pricing!$A$4:$D$4,0)) -> 368.8 | I35: 0 | K35: =IF(OR(E35 ="",E35<AA35,AB35="No",AA35=0),0,E35*AC35) -> 0 | O35: 0 | R35: 4 | S35: 174.24 | T35: =IF(AND(TRIM(S35)<>"",TRIM(E35)<>""),(E35*176)/S35,"") ->  | U35: 0 | V35: 0 | AA35: 12 | AB35: =IF(AND((E34+E35)>=AA35,E31>=AA31),"Yes","No") -> No | AC35: 10 | AL35: 0 | AM35: 0 | AN35: 0 | AW35: =INDEX(Pricing!$A$5:$D$100,MATCH('2024 FALL CALCULATOR'!$C35,Pricing!$A$5:$A$100,0),MATCH("National",Pricing!$A$4:$D$4,0)) -> 368.8 | AX35: 0
B36: Add 1+ to Greens Health or Snow Mold for $50 pairing rebate/Tier | C36: Castlon™ (1 gal.) | D36: 1 gal. bottle | F36: =INDEX(Pricing!$E$5:$G$100,MATCH('2024 FALL CALCULATOR'!$C36,Pricing!$A$5:$A$100,0),MATCH($C$22,Pricing!$E$4:$G$4,0)) -> 2600 | G36: 0 | H36: =INDEX(Pricing!$A$5:$D$100,MATCH('2024 FALL CALCULATOR'!$C36,Pricing!$A$5:$A$100,0),MATCH($C$22,Pricing!$A$4:$D$4,0)) -> 2600 | I36: 0 | K36: =IF(OR(E36 ="",E36<AA36,AB36="No",AA36=0),0,E36*AC36) -> 0 | O36: 0 | R36: 0.18 | S36: =R36*43.56 -> 7.8408 | T36: =IF(AND(TRIM(S36)<>"",TRIM(E36)<>""),(E36*128)/S36,"") ->  | U36: 0 | V36: 0 | AA36: 1 | AB36: =IFERROR(_xlfn.IFS(AND(AB31="Yes",AB35="Yes",E36>=1),"Yes",AND(AB31="Yes",AB55="Yes",E36>=1),"Yes",AND(AB44="Yes",AB48="Yes",E36>=1),"Yes",AND(AB39="Yes",AB62="Yes",E36>=1),"Yes",AND(AB61="Yes",E36>=1),"Yes"),"No") -> No | AC36: 50 | AL36: 0 | AM36: 0 | AN36: 0 | AW36: =INDEX(Pricing!$A$5:$D$100,MATCH('2024 FALL CALCULATOR'!$C36,Pricing!$A$5:$A$100,0),MATCH("National",Pricing!$A$4:$D$4,0)) -> 2600 | AX36: 0
B37: Purchase Tier | C37: Castlon™ (16oz.) | D37: 16 oz. bottle | F37: =INDEX(Pricing!$E$5:$G$100,MATCH('2024 FALL CALCULATOR'!$C37,Pricing!$A$5:$A$100,0),MATCH($C$22,Pricing!$E$4:$G$4,0)) -> 366.5 | G37: 0 | H37: =INDEX(Pricing!$A$5:$D$100,MATCH('2024 FALL CALCULATOR'!$C37,Pricing!$A$5:$A$100,0),MATCH($C$22,Pricing!$A$4:$D$4,0)) -> 366.5 | I37: 0 | O37: 0 | R37: 0.18 | S37: =R37*43.56 -> 7.8408 | T37: =IF(AND(TRIM(S37)<>"",TRIM(E37)<>""),(E37*16)/S37,"") ->  | U37: 0 | V37: 0 | AL37: 0 | AM37: 0 | AN37: 0 | AW37: =INDEX(Pricing!$A$5:$D$100,MATCH('2024 FALL CALCULATOR'!$C37,Pricing!$A$5:$A$100,0),MATCH("National",Pricing!$A$4:$D$4,0)) -> 366.5 | AX37: 0
B38: $35 Select 1+/Add 4+ to Greens Health or Snow Mold for $35 pairing rebate/Tier | C38: Densicor® | D38: 51 oz. bottle | F38: =INDEX(Pricing!$E$5:$G$100,MATCH('2024 FALL CALCULATOR'!$C38,Pricing!$A$5:$A$100,0),MATCH($C$22,Pricing!$E$4:$G$4,0)) -> 739.6 | G38: 0 | H38: =INDEX(Pricing!$A$5:$D$100,MATCH('2024 FALL CALCULATOR'!$C38,Pricing!$A$5:$A$100,0),MATCH($C$22,Pricing!$A$4:$D$4,0)) -> 739.6 | I38: 0 | J38: =IF(OR(E38 ="",E38<Y38,Y38=0),0,E38*Z38) -> 0 | K38: =IF(OR(E38 ="",E38<AA38,AB38="No",AA38=0),0,E38*AC38) -> 0 | O38: 0 | R38: =0.196 -> 0.196 | S38: 8.53776 | T38: =IF(AND(TRIM(S38)<>"",TRIM(E38)<>""),(E38*51)/S38,"") ->  | U38: 0 | V38: 0 | Y38: 1 | Z38: 35 | AA38: 4 | AB38: =IFERROR(_xlfn.IFS(AND(AB31="Yes",AB35="Yes",E38>=AA38),"Yes",AND(AB31="Yes",AB55="Yes",E38>=AA38),"Yes",AND(AB44="Yes",AB48="Yes",E38>=AA38),"Yes",AND(AB39="Yes",AB62="Yes",E38>=AA38),"Yes",AND(AB61="Yes",E38>=AA38),"Yes"),"No") -> No | AC38: 35 | AL38: 0 | AM38: 0 | AN38: 0 | AW38: =INDEX(Pricing!$A$5:$D$100,MATCH('2024 FALL CALCULATOR'!$C38,Pricing!$A$5:$A$100,0),MATCH("National",Pricing!$A$4:$D$4,0)) -> 739.6 | AX38: 0
B39: $45 Pairing Rebate/16+ | C39: Exteris® Stressgard® | D39: 2.5 gal jug | F39: =INDEX(Pricing!$E$5:$G$100,MATCH('2024 FALL CALCULATOR'!$C39,Pricing!$A$5:$A$100,0),MATCH($C$22,Pricing!$E$4:$G$4,0)) -> 366 | G39: 0 | H39: =INDEX(Pricing!$A$5:$D$100,MATCH('2024 FALL CALCULATOR'!$C39,Pricing!$A$5:$A$100,0),MATCH($C$22,Pricing!$A$4:$D$4,0)) -> 366 | I39: 0 | K39: =IF(OR(E39 ="",E39<AA39,AB39="No",AA39=0),0,E39*AC39) -> 0 | O39: 0 | Q39: =IF(AND(E39<>"",E39>0), E39*P39,"") ->  | R39: 4 | S39: 174.24 | T39: =IF(AND(TRIM(S39)<>"",TRIM(E39)<>""),(E39*320)/S39,"") ->  | U39: =IF(E39<>0,Q39/T39,0) -> 0 | V39: =U39/43.56 -> 0 | AA39: 16 | AB39: =IF(AND(E39>=AA39,E62>=AA62),"Yes","No") -> No | AC39: 45 | AL39: 0 | AM39: 0 | AN39: =IF(E39 = "",0,IFERROR(H39*E39,0)) -> 0 | AW39: =INDEX(Pricing!$A$5:$D$100,MATCH('2024 FALL CALCULATOR'!$C39,Pricing!$A$5:$A$100,0),MATCH("National",Pricing!$A$4:$D$4,0)) -> 366 | AX39: 0
B40: $10 Select for 8+ | C40: Fiata® Stressgard® | D40: 2.5 gal jug | F40: =INDEX(Pricing!$E$5:$G$100,MATCH('2024 FALL CALCULATOR'!$C40,Pricing!$A$5:$A$100,0),MATCH($C$22,Pricing!$E$4:$G$4,0)) -> 190 | G40: 0 | H40: =INDEX(Pricing!$A$5:$D$100,MATCH('2024 FALL CALCULATOR'!$C40,Pricing!$A$5:$A$100,0),MATCH($C$22,Pricing!$A$4:$D$4,0)) -> 190 | I40: 0 | J40: =IF(OR(E40 ="",E40<Y40,Y40=0),0,E40*Z40) -> 0 | O40: 0 | R40: 5 | S40: 217.8 | T40: =IF(AND(TRIM(S40)<>"",TRIM(E40)<>""),(E40*320)/S40,"") ->  | U40: 0 | V40: 0 | Y40: 8 | Z40: 10 | AL40: 0 | AM40: 0 | AN40: 0 | AW40: =INDEX(Pricing!$A$5:$D$100,MATCH('2024 FALL CALCULATOR'!$C40,Pricing!$A$5:$A$100,0),MATCH("National",Pricing!$A$4:$D$4,0)) -> 190 | AX40: 0
B41: Purchase Tier | C41: Indemnify® (1-2 units) | D41: 17.1 oz. bottle | F41: =INDEX(Pricing!$E$5:$G$100,MATCH('2024 FALL CALCULATOR'!$C41,Pricing!$A$5:$A$100,0),MATCH($C$22,Pricing!$E$4:$G$4,0)) -> 1963.6 | G41: 0 | H41: =INDEX(Pricing!$A$5:$D$100,MATCH('2024 FALL CALCULATOR'!$C41,Pricing!$A$5:$A$100,0),MATCH($C$22,Pricing!$A$4:$D$4,0)) -> 1963.6 | I41: 0 | O41: 0 | R41: =S41/43.56 -> 0.3900367309 | S41: 16.99 | T41: =IF(AND(TRIM(S41)<>"",TRIM(E41)<>""),(E41*17.1)/S41,"") ->  | U41: 0 | V41: 0 | AL41: 0 | AM41: 0 | AN41: 0 | AW41: =INDEX(Pricing!$A$5:$D$100,MATCH('2024 FALL CALCULATOR'!$C41,Pricing!$A$5:$A$100,0),MATCH("National",Pricing!$A$4:$D$4,0)) -> 1963.6 | AX41: 0
B42: Purchase Tier | C42: Indemnify® (3+ units) | D42: 17.1 oz. bottle | F42: =INDEX(Pricing!$E$5:$G$100,MATCH('2024 FALL CALCULATOR'!$C42,Pricing!$A$5:$A$100,0),MATCH($C$22,Pricing!$E$4:$G$4,0)) -> 1963.6 | G42: 0 | H42: =INDEX(Pricing!$A$5:$D$100,MATCH('2024 FALL CALCULATOR'!$C42,Pricing!$A$5:$A$100,0),MATCH($C$22,Pricing!$A$4:$D$4,0)) -> 1767.2 | I42: 0 | O42: 0 | R42: =S42/43.56 -> 0.3900367309 | S42: 16.99 | T42: =IF(AND(TRIM(S42)<>"",TRIM(E42)<>""),(E42*17.1)/S42,"") ->  | U42: 0 | V42: 0 | AL42: 0 | AM42: 0 | AN42: 0 | AW42: =INDEX(Pricing!$A$5:$D$100,MATCH('2024 FALL CALCULATOR'!$C42,Pricing!$A$5:$A$100,0),MATCH("National",Pricing!$A$4:$D$4,0)) -> 1767.2 | AX42: 0
B43: Purchase Tier | C43: Interface® Stressgard® (1-5 units) | D43: 2.5 gal. bottle | F43: =INDEX(Pricing!$E$5:$G$100,MATCH('2024 FALL CALCULATOR'!$C43,Pricing!$A$5:$A$100,0),MATCH($C$22,Pricing!$E$4:$G$4,0)) -> 561 | G43: 0 | H43: =INDEX(Pricing!$A$5:$D$100,MATCH('2024 FALL CALCULATOR'!$C43,Pricing!$A$5:$A$100,0),MATCH($C$22,Pricing!$A$4:$D$4,0)) -> 561 | I43: 0 | O43: 0 | R43: 4 | S43: =R43*43.56 -> 174.24 | T43: =IF(AND(TRIM(S43)<>"",TRIM(E43)<>""),(E43*319.999849189052)/S43,"") ->  | U43: 0 | V43: 0 | AL43: 0 | AM43: 0 | AN43: 0 | AW43: =INDEX(Pricing!$A$5:$D$100,MATCH('2024 FALL CALCULATOR'!$C43,Pricing!$A$5:$A$100,0),MATCH("National",Pricing!$A$4:$D$4,0)) -> 561 | AX43: 0
B44: $25 Select for 6+, $25 Pairing w/2+ Mirage/Tier | C44: Interface® Stressgard® (6+ units) | D44: 2.5 gal. bottle | F44: =INDEX(Pricing!$E$5:$G$100,MATCH('2024 FALL CALCULATOR'!$C44,Pricing!$A$5:$A$100,0),MATCH($C$22,Pricing!$E$4:$G$4,0)) -> 561 | G44: 0 | H44: =INDEX(Pricing!$A$5:$D$100,MATCH('2024 FALL CALCULATOR'!$C44,Pricing!$A$5:$A$100,0),MATCH($C$22,Pricing!$A$4:$D$4,0)) -> 494 | I44: 0 | J44: =IF(OR(E44 ="",E44<Y44,Y44=0),0,E44*Z44) -> 0 | K44: =IF(OR(E44 ="",E44<AA44,AB44="No",AA44=0),0,E44*AC44) -> 0 | O44: =IF(OR(AW44 ="",AL44+AM44=0),0,E44*AW44*(AL44+AM44)) -> 0 | R44: 4 | S44: 174.24 | T44: =IF(AND(TRIM(S44)<>"",TRIM(E44)<>""),(E44*319.999849189052)/S44,"") ->  | U44: 0 | V44: 0 | Y44: 6 | Z44: 25 | AA44: 6 | AB44: =IF(AND(E44>=AA44,E48>=AA48),"Yes","No") -> No | AC44: 25 | AL44: 0 | AM44: 0 | AN44: 0 | AW44: =INDEX(Pricing!$A$5:$D$100,MATCH('2024 FALL CALCULATOR'!$C44,Pricing!$A$5:$A$100,0),MATCH("National",Pricing!$A$4:$D$4,0)) -> 494 | AX44: 0
B45: $6.50 Golf FL/SC/TX ONLY Pairing: 12+ Kontos & 4+ Tetrino See State-Level Bermudagrass Mite 24(c) | C45: Kontos (1-11 units) | D45: 250 ml. bottle | F45: =INDEX(Pricing!$E$5:$G$100,MATCH('2024 FALL CALCULATOR'!$C45,Pricing!$A$5:$A$100,0),MATCH($C$22,Pricing!$E$4:$G$4,0)) -> 221.6 | G45: 0 | H45: =INDEX(Pricing!$A$5:$D$100,MATCH('2024 FALL CALCULATOR'!$C45,Pricing!$A$5:$A$100,0),MATCH($C$22,Pricing!$A$4:$D$4,0)) -> 221.6 | I45: =IF(ISERROR(E45*H45),0,E45*H45) -> 0 | K45: =IF(OR(E46 ="",E46<AA46,AB46="No",AA46=0),0,E45*AC46) -> 0 | P45: =IF(AND(E45<>"",E45>0),(H45-((SUM(J45:M45)+N45*E45+O45)/E45)),"") ->  | Q45: =IF(AND(E45<>"",E45>0), E45*P45,"") ->  | S45: 5 | T45: =IF(AND(TRIM(S45)<>"",TRIM(E45)<>""),(E45*8.45)/S45,"") ->  | U45: 0 | V45: 0 | AA45: 12 | AB45: =IF(AND(E64>=AA64,(E45+E46+E47)>=AA47),"Yes","No") -> No | AC45: 6.5 | AL45: 0 | AM45: 0 | AN45: =IF(E45 = "",0,IFERROR(H45*E45,0)) -> 0 | AW45: =INDEX(Pricing!$A$5:$D$100,MATCH('2024 FALL CALCULATOR'!$C45,Pricing!$A$5:$A$100,0),MATCH("National",Pricing!$A$4:$D$4,0)) -> 221.6 | AX45: =AW45*E45 -> 0
C46: Kontos (12-29 units) | D46: 250 ml. bottle | F46: =INDEX(Pricing!$E$5:$G$100,MATCH('2024 FALL CALCULATOR'!$C46,Pricing!$A$5:$A$100,0),MATCH($C$22,Pricing!$E$4:$G$4,0)) -> 221.6 | G46: 0 | H46: =INDEX(Pricing!$A$5:$D$100,MATCH('2024 FALL CALCULATOR'!$C46,Pricing!$A$5:$A$100,0),MATCH($C$22,Pricing!$A$4:$D$4,0)) -> 210.52 | I46: 0 | K46: =IF(OR(E46 ="",E46<AA46,AB46="No",AA46=0),0,E46*AC46) -> 0 | S46: 5 | T46: =IF(AND(TRIM(S46)<>"",TRIM(E46)<>""),(E46*8.45)/S46,"") ->  | U46: 0 | V46: 0 | AA46: 12 | AB46: =IF(AND(E64>=AA64,(E46+E47)>=AA47),"Yes","No") -> No | AC46: 6.5 | AL46: 0 | AM46: 0 | AN46: 0 | AW46: =INDEX(Pricing!$A$5:$D$100,MATCH('2024 FALL CALCULATOR'!$C46,Pricing!$A$5:$A$100,0),MATCH("National",Pricing!$A$4:$D$4,0)) -> 210.52 | AX46: 0
C47: Kontos (30+ units) | D47: 250 ml. bottle | F47: =INDEX(Pricing!$E$5:$G$100,MATCH('2024 FALL CALCULATOR'!$C47,Pricing!$A$5:$A$100,0),MATCH($C$22,Pricing!$E$4:$G$4,0)) -> 221.6 | G47: 0 | H47: =INDEX(Pricing!$A$5:$D$100,MATCH('2024 FALL CALCULATOR'!$C47,Pricing!$A$5:$A$100,0),MATCH($C$22,Pricing!$A$4:$D$4,0)) -> 199.44 | I47: 0 | K47: =IF(OR(E47 ="",E47<AA47,AB47="No",AA47=0),0,E47*AC47) -> 0 | S47: 5 | T47: =IF(AND(TRIM(S47)<>"",TRIM(E47)<>""),(E47*8.45)/S47,"") ->  | U47: 0 | V47: 0 | AA47: 12 | AB47: =IF(AND(E64>=AA64,(E46+E47)>=AA47),"Yes","No") -> No | AC47: 6.5 | AL47: 0 | AM47: 0 | AN47: 0 | AW47: =INDEX(Pricing!$A$5:$D$100,MATCH('2024 FALL CALCULATOR'!$C47,Pricing!$A$5:$A$100,0),MATCH("National",Pricing!$A$4:$D$4,0)) -> 199.44 | AX47: 0
B48: $25 2+ Pairing w/6+ Interface, $50 1+ w/1+ Castlon/Tier | C48: Mirage® Stressgard® | D48: 2.5 gal. bottle | F48: =INDEX(Pricing!$E$5:$G$100,MATCH('2024 FALL CALCULATOR'!$C48,Pricing!$A$5:$A$100,0),MATCH($C$22,Pricing!$E$4:$G$4,0)) -> 488 | G48: 0 | H48: =INDEX(Pricing!$A$5:$D$100,MATCH('2024 FALL CALCULATOR'!$C48,Pricing!$A$5:$A$100,0),MATCH($C$22,Pricing!$A$4:$D$4,0)) -> 488 | I48: 0 | K48: =IF(OR(E48 ="",E48<AA48,AB48="No",AA48=0),E48*AI48,E48*(AC48+AI48)) -> 0 | O48: =IF(OR(AW48 ="",AL48+AM48=0),0,E48*AW48*(AL48+AM48)) -> 0 | R48: 1 | S48: 43.56 | T48: =IF(AND(TRIM(S48)<>"",TRIM(E48)<>""),(E48*319.999849189052)/S48,"") ->  | U48: 0 | V48: 0 | AA48: 2 | AB48: =IF(AND(E44>=AA44,E48>=AA48),"Yes","No") -> No | AC48: 25 | AG48: 1 | AH48: =IF(AND(E48>=AG48,E36>=1),"Yes","No") -> No | AI48: =IF(AH48="Yes",50,0) -> 0 | AL48: =IF(AND(E48 <>"",AN$92>=5000,AM$92<=0.07),0.01,0) -> 0 | AM48: =IF(E48 <>"", AM$92,0) -> 0 | AN48: 0 | AW48: =INDEX(Pricing!$A$5:$D$100,MATCH('2024 FALL CALCULATOR'!$C48,Pricing!$A$5:$A$100,0),MATCH("National",Pricing!$A$4:$D$4,0)) -> 488 | AX48: 0
B49: Add 4+ to Greens Health or Snow Mold for $30 pairing rebate/Tier | C49: Resilia ™ | D49: 2.72 gal. bottle | F49: =INDEX(Pricing!$E$5:$G$100,MATCH('2024 FALL CALCULATOR'!$C49,Pricing!$A$5:$A$100,0),MATCH($C$22,Pricing!$E$4:$G$4,0)) -> 918.87 | G49: 0 | H49: =INDEX(Pricing!$A$5:$D$100,MATCH('2024 FALL CALCULATOR'!$C49,Pricing!$A$5:$A$100,0),MATCH($C$22,Pricing!$A$4:$D$4,0)) -> 918.87 | I49: 0 | K49: =IF(OR(E49 ="",E49<AA49,AB49="No",AA49=0),0,E49*AC49) -> 0 | O49: 0 | R49: 4 | S49: 174.24 | T49: =IF(AND(TRIM(S49)<>"",TRIM(E49)<>""),(E49*348.16)/S49,"") ->  | U49: 0 | V49: 0 | AA49: 4 | AB49: =IFERROR(_xlfn.IFS(AND(AB31="Yes",AB35="Yes",E49>=AA49),"Yes",AND(AB31="Yes",AB55="Yes",E49>=AA49),"Yes",AND(AB44="Yes",AB48="Yes",E49>=AA49),"Yes",AND(AB39="Yes",AB62="Yes",E49>=AA49),"Yes",AND(AB61="Yes",E49>=AA49),"Yes"),"No") -> No | AC49: 30 | AL49: 0 | AM49: 0 | AN49: 0 | AW49: =INDEX(Pricing!$A$5:$D$100,MATCH('2024 FALL CALCULATOR'!$C49,Pricing!$A$5:$A$100,0),MATCH("National",Pricing!$A$4:$D$4,0)) -> 918.87 | AX49: 0
B50: Purchases count towards rebate tier but do not receive purchase tier rebate. | C50: Ronstar® FLO 1 to 11 | D50: 2.5 gal jug | F50: =INDEX(Pricing!$E$5:$G$100,MATCH('2024 FALL CALCULATOR'!$C50,Pricing!$A$5:$A$100,0),MATCH($C$22,Pricing!$E$4:$G$4,0)) -> 552 | G50: 0 | H50: =INDEX(Pricing!$A$5:$D$100,MATCH('2024 FALL CALCULATOR'!$C50,Pricing!$A$5:$A$100,0),MATCH($C$22,Pricing!$A$4:$D$4,0)) -> 552 | I50: =IF(ISERROR(E50*H50),0,E50*H50) -> 0 | R50: =S50/43.56 -> 2.329889807 | S50: 101.49 | T50: =IF(AND(TRIM(S50)<>"",TRIM(E50)<>""),(E50*319.999849189052)/S50,"") ->  | U50: =IF(E50<>0,Q50/T50,0) -> 0 | V50: =U50/43.56 -> 0 | AL50: 0 | AM50: 0 | AN50: 0 | AW50: =INDEX(Pricing!$A$5:$D$100,MATCH('2024 FALL CALCULATOR'!$C50,Pricing!$A$5:$A$100,0),MATCH("National",Pricing!$A$4:$D$4,0)) -> 552 | AX50: 0
C51: Ronstar® FLO 12 to 39 | D51: 2.5 gal jug | F51: =INDEX(Pricing!$E$5:$G$100,MATCH('2024 FALL CALCULATOR'!$C51,Pricing!$A$5:$A$100,0),MATCH($C$22,Pricing!$E$4:$G$4,0)) -> 552 | G51: 0 | H51: =INDEX(Pricing!$A$5:$D$100,MATCH('2024 FALL CALCULATOR'!$C51,Pricing!$A$5:$A$100,0),MATCH($C$22,Pricing!$A$4:$D$4,0)) -> 453 | I51: 0 | R51: =S51/43.56 -> 2.329889807 | S51: 101.49 | T51: =IF(AND(TRIM(S51)<>"",TRIM(E51)<>""),(E51*319.999849189052)/S51,"") ->  | U51: 0 | V51: 0 | AL51: 0 | AM51: 0 | AN51: 0 | AW51: =INDEX(Pricing!$A$5:$D$100,MATCH('2024 FALL CALCULATOR'!$C51,Pricing!$A$5:$A$100,0),MATCH("National",Pricing!$A$4:$D$4,0)) -> 453 | AX51: 0
C52: Ronstar® FLO 40+ | D52: 2.5 gal jug | F52: =INDEX(Pricing!$E$5:$G$100,MATCH('2024 FALL CALCULATOR'!$C52,Pricing!$A$5:$A$100,0),MATCH($C$22,Pricing!$E$4:$G$4,0)) -> 552 | G52: 0 | H52: =INDEX(Pricing!$A$5:$D$100,MATCH('2024 FALL CALCULATOR'!$C52,Pricing!$A$5:$A$100,0),MATCH($C$22,Pricing!$A$4:$D$4,0)) -> 393 | I52: 0 | P52: =IF(AND(E52<>"",E52>0),(H52-((SUM(J52:M52)+N52*E52+O52)/E52)),"") ->  | R52: =S52/43.56 -> 2.329889807 | S52: 101.49 | U52: 0 | V52: 0 | AL52: 0 | AM52: 0 | AN52: 0 | AW52: =INDEX(Pricing!$A$5:$D$100,MATCH('2024 FALL CALCULATOR'!$C52,Pricing!$A$5:$A$100,0),MATCH("National",Pricing!$A$4:$D$4,0)) -> 393 | AX52: 0
B53: $35 Select for 4+/up to 4% Loyalty Bonus/Tier | C53: Revolver® (87 oz. bottle) | D53: 87 oz. bottle | F53: =INDEX(Pricing!$E$5:$G$100,MATCH('2024 FALL CALCULATOR'!$C53,Pricing!$A$5:$A$100,0),MATCH($C$22,Pricing!$E$4:$G$4,0)) -> 758 | G53: 0 | H53: =INDEX(Pricing!$A$5:$D$100,MATCH('2024 FALL CALCULATOR'!$C53,Pricing!$A$5:$A$100,0),MATCH($C$22,Pricing!$A$4:$D$4,0)) -> 758 | I53: 0 | J53: =IF(OR(E53 ="",E53<Y53,Y53=0),0,E53*Z53) -> 0 | L53: =IFERROR(IF(I53*AF53<>0,I53*AF53,0),0) -> 0 | O53: =IF(OR(AW53 ="",AL53+AM53=0),0,E53*AW53*(AL53+AM53)) -> 0 | R53: =S53/43.56 -> 0.3999081726 | S53: 17.42 | T53: =IF(AND(TRIM(S53)<>"",TRIM(E53)<>""),(E53*87)/S53,"") ->  | U53: 0 | V53: 0 | Y53: 4 | Z53: 35 | AD53: =IF(E53>=Y53,1,0) -> 0 | AE53: =IFERROR(_xlfn.IFS($AD$32+$AD$33+$AD$53+$AD$63>=3,3,$AD$32+$AD$33+$AD$53+$AD$63=2,2,$AD$32+$AD$33+$AD$53+$AD$63=1,1,$AD$32+$AD$33+$AD$53+$AD$63<=0,0),0) -> 0 | AF53: =IFERROR(IF(E53>=Y53,(_xlfn.XLOOKUP($AE$56,$AP$31:$AP$34,_xlfn.XLOOKUP(AE53,$AQ$27:$AS$27,$AQ$31:$AS$34))),0),0) -> 0 | AL53: 0 | AM53: 0 | AN53: 0 | AW53: =INDEX(Pricing!$A$5:$D$100,MATCH('2024 FALL CALCULATOR'!$C53,Pricing!$A$5:$A$100,0),MATCH("National",Pricing!$A$4:$D$4,0)) -> 758 | AX53: 0
B54: Purchase Tier | C54: Signature XTRA Stressgard (1 to 23) | D54: 5.5 lb bottle | F54: =INDEX(Pricing!$E$5:$G$100,MATCH('2024 FALL CALCULATOR'!$C54,Pricing!$A$5:$A$100,0),MATCH($C$22,Pricing!$E$4:$G$4,0)) -> 210.4 | G54: 0 | H54: =INDEX(Pricing!$A$5:$D$100,MATCH('2024 FALL CALCULATOR'!$C54,Pricing!$A$5:$A$100,0),MATCH($C$22,Pricing!$A$4:$D$4,0)) -> 210.4 | I54: 0 | O54: 0 | R54: 4 | S54: =R54*43.56 -> 174.24 | T54: =IF(AND(TRIM(S54)<>"",TRIM(E54)<>""),(E54*87.9999998763089)/S54,"") ->  | U54: 0 | V54: 0 | AL54: 0 | AM54: 0 | AN54: 0 | AW54: =INDEX(Pricing!$A$5:$D$100,MATCH('2024 FALL CALCULATOR'!$C54,Pricing!$A$5:$A$100,0),MATCH("National",Pricing!$A$4:$D$4,0)) -> 210.4 | AX54: 0
B55: $10 for 24+ with 2+ Banol/Tier | C55: Signature XTRA Stressgard (24+) | D55: 5.5 lb bottle | F55: =INDEX(Pricing!$E$5:$G$100,MATCH('2024 FALL CALCULATOR'!$C55,Pricing!$A$5:$A$100,0),MATCH($C$22,Pricing!$E$4:$G$4,0)) -> 210.4 | G55: 0 | H55: =INDEX(Pricing!$A$5:$D$100,MATCH('2024 FALL CALCULATOR'!$C55,Pricing!$A$5:$A$100,0),MATCH($C$22,Pricing!$A$4:$D$4,0)) -> 192.8 | I55: 0 | K55: =IF(OR(E55 ="",E55<AA55,AB55="No",AA55=0),0,E55*AC55) -> 0 | O55: 0 | R55: 4 | S55: 174.24 | T55: =IF(AND(TRIM(S55)<>"",TRIM(E55)<>""),(E55*87.9999998763089)/S55,"") ->  | U55: 0 | V55: 0 | AA55: 24 | AB55: =IF(AND((E54+E55)>=AA55,E31>=AA31),"Yes","No") -> No | AC55: 10 | AL55: 0 | AM55: 0 | AN55: 0 | AW55: =INDEX(Pricing!$A$5:$D$100,MATCH('2024 FALL CALCULATOR'!$C55,Pricing!$A$5:$A$100,0),MATCH("National",Pricing!$A$4:$D$4,0)) -> 192.8 | AX55: 0
B56: Purchases may earn Loyalty Bonus and count towards rebate tier but do not receive purchase tier rebate. | C56: Specticle® FLO (1-6 units) | D56: 1 gal. bottle | F56: =INDEX(Pricing!$E$5:$G$100,MATCH('2024 FALL CALCULATOR'!$C56,Pricing!$A$5:$A$100,0),MATCH($C$22,Pricing!$E$4:$G$4,0)) -> 2072 | G56: 0 | H56: =INDEX(Pricing!$A$5:$D$100,MATCH('2024 FALL CALCULATOR'!$C56,Pricing!$A$5:$A$100,0),MATCH($C$22,Pricing!$A$4:$D$4,0)) -> 1968.4 | I56: 0 | L56: =IFERROR(IF(I56*AF56<>0,I56*AF56,0),0) -> 0 | R56: =S56/43.56 -> 0.1379706152 | S56: 6.01 | T56: =IF(AND(TRIM(S56)<>"",TRIM(E56)<>""),(E56*127.999939675621)/S56,"") ->  | U56: 0 | V56: 0 | AE56: =_xlfn.IFS(E56+E57+E58+E59>=26,26,E56+E57+E58+E59>=14,14,E56+E57+E58+E59>=7,7,E56+E57+E58+E59>=1,1,E56+E57+E58+E59<=0,0) -> 0 | AF56: =IFERROR(IF(E56>=0,(_xlfn.XLOOKUP($AE$56,$AP$31:$AP$34,_xlfn.XLOOKUP($AE$53,$AQ$27:$AS$27,$AQ$31:$AS$34))),0),0) -> 0 | AL56: 0 | AM56: 0 | AN56: 0 | AW56: =INDEX(Pricing!$A$5:$D$100,MATCH('2024 FALL CALCULATOR'!$C56,Pricing!$A$5:$A$100,0),MATCH("National",Pricing!$A$4:$D$4,0)) -> 1968.4 | AX56: 0
C57: Specticle® FLO (7-13 units) | D57: 1 gal. bottle | F57: =INDEX(Pricing!$E$5:$G$100,MATCH('2024 FALL CALCULATOR'!$C57,Pricing!$A$5:$A$100,0),MATCH($C$22,Pricing!$E$4:$G$4,0)) -> 2072 | G57: 0 | H57: =INDEX(Pricing!$A$5:$D$100,MATCH('2024 FALL CALCULATOR'!$C57,Pricing!$A$5:$A$100,0),MATCH($C$22,Pricing!$A$4:$D$4,0)) -> 1895.88 | I57: 0 | L57: =IFERROR(IF(I57*AF57<>0,I57*AF57,0),0) -> 0 | R57: 0.1379706152 | S57: 6.01 | T57: =IF(AND(TRIM(S57)<>"",TRIM(E57)<>""),(E57*127.999939675621)/S57,"") ->  | U57: 0 | V57: 0 | AF57: =IFERROR(IF(E57>=0,(_xlfn.XLOOKUP($AE$56,$AP$31:$AP$34,_xlfn.XLOOKUP($AE$53,$AQ$27:$AS$27,$AQ$31:$AS$34))),0),0) -> 0 | AL57: 0 | AM57: 0 | AN57: 0 | AW57: =INDEX(Pricing!$A$5:$D$100,MATCH('2024 FALL CALCULATOR'!$C57,Pricing!$A$5:$A$100,0),MATCH("National",Pricing!$A$4:$D$4,0)) -> 1895.88 | AX57: 0
C58: Specticle® FLO (14-25 units) | D58: 1 gal. bottle | F58: =INDEX(Pricing!$E$5:$G$100,MATCH('2024 FALL CALCULATOR'!$C58,Pricing!$A$5:$A$100,0),MATCH($C$22,Pricing!$E$4:$G$4,0)) -> 1778.4 | G58: 0 | H58: =INDEX(Pricing!$A$5:$D$100,MATCH('2024 FALL CALCULATOR'!$C58,Pricing!$A$5:$A$100,0),MATCH($C$22,Pricing!$A$4:$D$4,0)) -> 1657.6 | I58: 0 | L58: =IFERROR(IF(I58*AF58<>0,I58*AF58,0),0) -> 0 | R58: =S58/43.56 -> 0.1379706152 | S58: 6.01 | T58: =IF(AND(TRIM(S58)<>"",TRIM(E58)<>""),(E58*127.999939675621)/S58,"") ->  | U58: 0 | V58: 0 | AF58: =IFERROR(IF(E58>=0,(_xlfn.XLOOKUP($AE$56,$AP$31:$AP$34,_xlfn.XLOOKUP($AE$53,$AQ$27:$AS$27,$AQ$31:$AS$34))),0),0) -> 0 | AL58: 0 | AM58: 0 | AN58: 0 | AW58: =INDEX(Pricing!$A$5:$D$100,MATCH('2024 FALL CALCULATOR'!$C58,Pricing!$A$5:$A$100,0),MATCH("National",Pricing!$A$4:$D$4,0)) -> 1657.6 | AX58: 0
C59: Specticle® FLO (26+ units) | D59: 1 gal. bottle | F59: =INDEX(Pricing!$E$5:$G$100,MATCH('2024 FALL CALCULATOR'!$C59,Pricing!$A$5:$A$100,0),MATCH($C$22,Pricing!$E$4:$G$4,0)) -> 1778.4 | G59: 0 | H59: =INDEX(Pricing!$A$5:$D$100,MATCH('2024 FALL CALCULATOR'!$C59,Pricing!$A$5:$A$100,0),MATCH($C$22,Pricing!$A$4:$D$4,0)) -> 1533.28 | I59: 0 | L59: =IFERROR(IF(I59*AF59<>0,I59*AF59,0),0) -> 0 | M59: =IFERROR(IF(E59*AL59<>0,E59*AL59,0),0) -> 0 | R59: 0.1379706152 | S59: 6.01 | T59: =IF(AND(TRIM(S59)<>"",TRIM(E59)<>""),(E59*127.999939675621)/S59,"") ->  | U59: 0 | V59: 0 | Y59: 26 | AF59: =IFERROR(IF(E59>=0,(_xlfn.XLOOKUP($AE$56,$AP$31:$AP$34,_xlfn.XLOOKUP($AE$53,$AQ$27:$AS$27,$AQ$31:$AS$34))),0),0) -> 0 | AJ59: =IFERROR(_xlfn.IFS(E59>=52,52,E59>=38,38,E59>=26,26),0) -> 0 | AK59: =IFERROR(_xlfn.IFS(AJ59=52,242,AJ59=38,182,AJ59=26,152),0) -> 0 | AL59: 0 | AM59: 0 | AN59: 0 | AW59: =INDEX(Pricing!$A$5:$D$100,MATCH('2024 FALL CALCULATOR'!$C59,Pricing!$A$5:$A$100,0),MATCH("National",Pricing!$A$4:$D$4,0)) -> 1533.28 | AX59: 0
B60: $11.50 Select for 20+ /Tier | C60: Specticle® G | D60: 50 lb. bag | F60: =INDEX(Pricing!$E$5:$G$100,MATCH('2024 FALL CALCULATOR'!$C60,Pricing!$A$5:$A$100,0),MATCH($C$22,Pricing!$E$4:$G$4,0)) -> 128 | G60: 0 | H60: =INDEX(Pricing!$A$5:$D$100,MATCH('2024 FALL CALCULATOR'!$C60,Pricing!$A$5:$A$100,0),MATCH($C$22,Pricing!$A$4:$D$4,0)) -> 128 | I60: 0 | J60: =IF(OR(E60 ="",E60<Y60,Y60=0),0,E60*Z60) -> 0 | O60: =IF(OR(AW60 ="",AL60+AM60=0),0,E60*AW60*(AL60+AM60)) -> 0 | S60: 150 | T60: =IF(AND(TRIM(S60)<>"",TRIM(E60)<>""),(E60*50)/S60,"") ->  | U60: =IF(E60<>0,Q60/T60,0) -> 0 | V60: 0 | Y60: 20 | Z60: 11.5 | AF60: =IFERROR(IF(E60>=0,(_xlfn.XLOOKUP($AE$56,$AP$31:$AP$34,_xlfn.XLOOKUP($AE$53,$AQ$27:$AS$27,$AQ$31:$AS$34))),0),0) -> 0 | AL60: 0 | AM60: 0 | AN60: 0 | AW60: =INDEX(Pricing!$A$5:$D$100,MATCH('2024 FALL CALCULATOR'!$C60,Pricing!$A$5:$A$100,0),MATCH("National",Pricing!$A$4:$D$4,0)) -> 128 | AX60: 0
B61: $20 Select Rebate/2+/Tier | C61: Tartan® Stressgard® (1 to 5 units) | D61: 2.5 gal | F61: =INDEX(Pricing!$E$5:$G$100,MATCH('2024 FALL CALCULATOR'!$C61,Pricing!$A$5:$A$100,0),MATCH($C$22,Pricing!$E$4:$G$4,0)) -> 1033 | G61: 0 | H61: =INDEX(Pricing!$A$5:$D$100,MATCH('2024 FALL CALCULATOR'!$C61,Pricing!$A$5:$A$100,0),MATCH($C$22,Pricing!$A$4:$D$4,0)) -> 1033 | I61: =IF(ISERROR(E61*H61),0,E61*H61) -> 0 | J61: =IF(OR(E61 ="",E61<Y61,Y61=0),0,E61*Z61) -> 0 | O61: 0 | Q61: =IF(AND(E61<>"",E61>0), E61*P61,"") ->  | R61: 1.5 | S61: =R61*43.56 -> 65.34 | T61: =IF(AND(TRIM(S61)<>"",TRIM(E61)<>""),(E61*319.999849189052)/S61,"") ->  | U61: =IF(E61<>0,Q61/T61,0) -> 0 | V61: =U61/43.56 -> 0 | Y61: 2 | Z61: 20 | AA61: 2 | AB61: =IF(AND((E61+E62)>=AA61,E49>=AA49),"Yes","No") -> No | AC61: 0 | AF61: =IFERROR(IF(E61>=0,(_xlfn.XLOOKUP($AE$56,$AP$31:$AP$34,_xlfn.XLOOKUP($AE$53,$AQ$27:$AS$27,$AQ$31:$AS$34))),0),0) -> 0 | AL61: =IF(AND(E61 <>"",AN$92>=5000,AM$92<=0.07),0.01,0) -> 0 | AM61: =IF(E61 <>"", AM$92,0) -> 0 | AN61: =IF(E61 = "",0,IFERROR(H61*E61,0)) -> 0 | AW61: =INDEX(Pricing!$A$5:$D$100,MATCH('2024 FALL CALCULATOR'!$C61,Pricing!$A$5:$A$100,0),MATCH("National",Pricing!$A$4:$D$4,0)) -> 1033 | AX61: 0
B62: $30 Pairing Rebate/6+/Tier | C62: Tartan® Stressgard® 6+ | D62: 2.5 gal | F62: =INDEX(Pricing!$E$5:$G$100,MATCH('2024 FALL CALCULATOR'!$C62,Pricing!$A$5:$A$100,0),MATCH($C$22,Pricing!$E$4:$G$4,0)) -> 1033 | G62: 0 | H62: =INDEX(Pricing!$A$5:$D$100,MATCH('2024 FALL CALCULATOR'!$C62,Pricing!$A$5:$A$100,0),MATCH($C$22,Pricing!$A$4:$D$4,0)) -> 940 | I62: 0 | J62: 0 | K62: =IF(OR(E62 ="",E62<AA62,AB62="No",AA62=0),0,E62*AC62) -> 0 | O62: 0 | P62: =IF(AND(E62<>"",E62>0),(H62-((SUM(J62:M62)+N62*E62+O62)/E62)),"") ->  | R62: 1.5 | S62: 65.34 | T62: =IF(AND(TRIM(S62)<>"",TRIM(E62)<>""),(E62*319.999849189052)/S62,"") ->  | U62: =IF(E62<>0,Q62/T62,0) -> 0 | V62: 0 | Y62: 2 | Z62: 20 | AA62: 6 | AB62: =IF(AND(E62>=AA62,E39>=AA39),"Yes","No") -> No | AC62: 30 | AF62: =IFERROR(IF(E62>=0,(_xlfn.XLOOKUP($AE$56,$AP$31:$AP$34,_xlfn.XLOOKUP($AE$53,$AQ$27:$AS$27,$AQ$31:$AS$34))),0),0) -> 0 | AL62: 0 | AM62: 0 | AN62: 0 | AW62: =INDEX(Pricing!$A$5:$D$100,MATCH('2024 FALL CALCULATOR'!$C62,Pricing!$A$5:$A$100,0),MATCH("National",Pricing!$A$4:$D$4,0)) -> 940 | AX62: 0
B63: $30 Select for 6+/up to 4% Loyalty Bonus/Tier | C63: Tribute® Total | D63: 6 oz. bottle | F63: =INDEX(Pricing!$E$5:$G$100,MATCH('2024 FALL CALCULATOR'!$C63,Pricing!$A$5:$A$100,0),MATCH($C$22,Pricing!$E$4:$G$4,0)) -> 413.6 | G63: 0 | H63: =INDEX(Pricing!$A$5:$D$100,MATCH('2024 FALL CALCULATOR'!$C63,Pricing!$A$5:$A$100,0),MATCH($C$22,Pricing!$A$4:$D$4,0)) -> 413.6 | I63: 0 | J63: =IF(OR(E63 ="",E63<Y63,Y63=0),0,E63*Z63) -> 0 | L63: =IFERROR(IF(I63*AF63<>0,I63*AF63,0),0) -> 0 | O63: 0 | Q63: =IF(AND(E63<>"",E63>0), E63*P63,"") ->  | R63: 0.02295684114 | S63: 1 | T63: =IF(AND(TRIM(S63)<>"",TRIM(E63)<>""),(E63*6)/S63,"") ->  | U63: 0 | V63: 0 | Y63: 6 | Z63: 30 | AD63: =IF(E63>=Y63,1,0) -> 0 | AE63: =IFERROR(_xlfn.IFS($AD$32+$AD$33+$AD$53+$AD$63>=3,3,$AD$32+$AD$33+$AD$53+$AD$63=2,2,$AD$32+$AD$33+$AD$53+$AD$63=1,1,$AD$32+$AD$33+$AD$53+$AD$63<=0,0),0) -> 0 | AF63: =IFERROR(IF(E63>=Y63,(_xlfn.XLOOKUP($AE$56,$AP$31:$AP$34,_xlfn.XLOOKUP(AE63,$AQ$27:$AS$27,$AQ$31:$AS$34))),0),0) -> 0 | AL63: =IF(AND(E63 <>"",AN$92>=5000,AM$92<=0.07),0.01,0) -> 0 | AM63: =IF(E63 <>"", AM$92,0) -> 0 | AN63: 0 | AW63: =INDEX(Pricing!$A$5:$D$100,MATCH('2024 FALL CALCULATOR'!$C63,Pricing!$A$5:$A$100,0),MATCH("National",Pricing!$A$4:$D$4,0)) -> 413.6 | AX63: 0
B64: $25 Select for 4+/Tier $15 Golf FL/SC/TX ONLY Pairing: 12+ Kontos & 4+ Tetrino See State-Level Bermudagrass Mite 24C | C64: Tetrino® | D64: 1 gal bottle | E64: 11 | F64: =INDEX(Pricing!$E$5:$G$100,MATCH('2024 FALL CALCULATOR'!$C64,Pricing!$A$5:$A$100,0),MATCH($C$22,Pricing!$E$4:$G$4,0)) -> 498 | G64: 5478 | H64: =INDEX(Pricing!$A$5:$D$100,MATCH('2024 FALL CALCULATOR'!$C64,Pricing!$A$5:$A$100,0),MATCH($C$22,Pricing!$A$4:$D$4,0)) -> 498 | I64: 5478 | J64: =IF(OR(E64 ="",E64<Y64,Y64=0),0,E64*Z64) -> 275 | K64: =IF(OR(E64 ="",E64<AA64,AB64="No",AA64=0),0,E64*AC64) -> 0 | O64: 219.12 | P64: 453.08 | Q64: 4983.88 | S64: 16 | T64: =IF(AND(TRIM(S64)<>"",TRIM(E64)<>""),(E64*127.999939675621)/S64,"") -> 87.99995853 | U64: 56.63502669 | V64: 1.300161311 | Y64: 4 | Z64: 25 | AA64: 4 | AB64: =IF(AND(E64>=AA64,(E46+E47)>=AA47),"Yes","No") -> No | AC64: 15 | AL64: =IF(AND(E64 <>"",AN$92>=5000,AM$92<=0.07),0.01,0) -> 0.01 | AM64: =IF(E64 <>"", AM$92,0) -> 0.03 | AN64: 5478 | AW64: =INDEX(Pricing!$A$5:$D$100,MATCH('2024 FALL CALCULATOR'!$C64,Pricing!$A$5:$A$100,0),MATCH("National",Pricing!$A$4:$D$4,0)) -> 498 | AX64: 5478
I66: Non-Agency Products
B67: REBATE FINDER. (Minimum Program Purchase to receive rebates is $5,000) | C67: PRODUCT NAME | D67: UNIT SIZE | E67: # UNITS | F67: INSEASON PRICE | G67: INSEASON SUBTOTAL | H67: PRICE/ UNIT* | I67: INVOICE SUBTOTAL ($5,000 minimum across NOW/FALL program to receive rebates) | J67: SELECT REBATES**† | K67: PAIRING REBATES**† | L67: SPECTICLE FLO LOYALTY BONUS**† | M67: SPECTICLE FLO LARGE LAWN USER REBATE **† | N67: STRATEGIC PARTNER REBATE/unit **† | O67: PURCHASE TIER REBATE**† | P67: NET PRICE/UNIT (all rebates, incl. purchase tier) | Q67: TOTAL AFTER REBATE | R67: USE RATE / 1,000 FT2 | S67: INTENDED/ACRE USE RATE | T67: TOTAL ACRES TREATED | U67: COST/ ACRE | V67: COST/ 1,000 FT2 | AW67: National Price | AX67: National invoice for rebate calculations | AY67: Dist Suggested Min Price (DSMP) | AZ67: DSMP invoice for rebate calculations
L69: =L27 -> 0 | O69: =O27 -> 0.04
B70: $24 Select 1+/Tier | C70: Armada® 50 WDG | D70: 2 lb. bottle | F70: =INDEX(Pricing!$E$5:$G$101,MATCH('2024 FALL CALCULATOR'!$C70,Pricing!$A$5:$A$101,0),MATCH($C$22,Pricing!$E$4:$G$4,0)) -> 114 | G70: =IF(ISERROR(E70*F70),"",E70*F70) -> 0 | I70: =IF(E70*H70= 0,0,E70*H70) -> 0 | J70: =IF(OR(E70 ="",E70<Y70,Y70=0),0,E70*Z70) -> 0 | O70: =IF(OR(AW70 ="",AL70+AM70=0),0,E70*AW70*(AL70+AM70)) -> 0 | P70: =IF(AND(E70<>"",E70>0),(H70-((SUM(J70:M70)+N70*E70+O70)/E70)),"") ->  | Q70: =IF(AND(E70<>"",E70>0), E70*P70,"") ->  | R70: =S70/43.56 -> 0.5 | S70: 21.78 | T70: =IF(AND(TRIM(S70)<>"",TRIM(E70)<>""),(E70*127.999939675621)/S70,"") ->  | U70: =IF(I70<>0,Q70/T70,0) -> 0 | V70: =U70/43.56 -> 0 | Y70: 1 | Z70: 24 | AL70: =IF(AND(E70 <>"",AN$92>=5000,AM$92<=0.07),0.01,0) -> 0 | AM70: =IF(E70 <>"", AM$92,0) -> 0 | AN70: =IF(E70 = "",0,IFERROR(F70*E70,0)) -> 0 | AW70: =INDEX(Pricing!$A$5:$D$100,MATCH('2024 FALL CALCULATOR'!$C70,Pricing!$A$5:$A$100,0),MATCH("National",Pricing!$A$4:$D$4,0)) -> 114 | AX70: 0 | AY70: =INDEX(Pricing!$A$5:$K$100,MATCH('2024 FALL CALCULATOR'!$C70,Pricing!$A$5:$A$100,0),MATCH("Dist Suggested Min Price (DSMP)",Pricing!$A$4:$K$4,0)) -> 0 | AZ70: =AY70*E70 -> 0
B71: $90 Select 1+/Tier | C71: Acclaim® Extra (1 gal) | D71: 1 gal. jug | F71: =INDEX(Pricing!$E$5:$G$101,MATCH('2024 FALL CALCULATOR'!$C71,Pricing!$A$5:$A$101,0),MATCH($C$22,Pricing!$E$4:$G$4,0)) -> 665.2 | G71: 0 | I71: =IF(E71*H71= 0,0,E71*H71) -> 0 | J71: =IF(OR(E71 ="",E71<Y71,Y71=0),0,E71*Z71) -> 0 | O71: 0 | Q71: =IF(AND(E71<>"",E71>0), E71*P71,"") ->  | R71: =S71/43.56 -> 0.5 | S71: 21.78 | T71: =IF(AND(TRIM(S71)<>"",TRIM(E71)<>""),(E71*127.999939675621)/S71,"") ->  | U71: =IF(I71<>0,Q71/T71,0) -> 0 | V71: 0 | Y71: 1 | Z71: 90 | AL71: =IF(AND(E71 <>"",AN$92>=5000,AM$92<=0.07),0.01,0) -> 0 | AM71: =IF(E71 <>"", AM$92,0) -> 0 | AN71: =IF(E71 = "",0,IFERROR(F71*E71,0)) -> 0 | AW71: =INDEX(Pricing!$A$5:$D$100,MATCH('2024 FALL CALCULATOR'!$C71,Pricing!$A$5:$A$100,0),MATCH("National",Pricing!$A$4:$D$4,0)) -> 665.2 | AX71: 0 | AY71: =INDEX(Pricing!$A$5:$K$100,MATCH('2024 FALL CALCULATOR'!$C71,Pricing!$A$5:$A$100,0),MATCH("Dist Suggested Min Price (DSMP)",Pricing!$A$4:$K$4,0)) -> 0 | AZ71: =AY71*E71 -> 0
B72: 5% Select/Tier | C72: Acclaim Accelerate (0.5 gal) | D72: .5 gal. jug | F72: =INDEX(Pricing!$E$5:$G$101,MATCH('2024 FALL CALCULATOR'!$C72,Pricing!$A$5:$A$101,0),MATCH($C$22,Pricing!$E$4:$G$4,0)) -> 45.65 | G72: 0 | I72: =IF(E72*H72= 0,0,E72*H72) -> 0 | J72: 0 | O72: =IF(OR(AW72 ="",AL72+AM72=0),0,E72*AY72*(AL72+AM72)) -> 0 | R72: 1.45 | S72: =R72*43.56 -> 63.162 | T72: =IF(AND(TRIM(S72)<>"",TRIM(E72)<>""),(E72*64)/S72,"") ->  | U72: 0 | V72: 0 | Y72: 1 | Z72: =AY72*0.05 -> 2.75 | AL72: 0 | AM72: 0 | AN72: =IF(E72 = "",0,IFERROR(F72*E72,0)) -> 0 | AW72: =INDEX(Pricing!$A$5:$D$100,MATCH('2024 FALL CALCULATOR'!$C72,Pricing!$A$5:$A$100,0),MATCH("National",Pricing!$A$4:$D$4,0)) -> 45.65 | AX72: 0 | AY72: =INDEX(Pricing!$A$5:$K$100,MATCH('2024 FALL CALCULATOR'!$C72,Pricing!$A$5:$A$100,0),MATCH("Dist Suggested Min Price (DSMP)",Pricing!$A$4:$K$4,0)) -> 55 | AZ72: 0
B73: 5% Select/Tier | C73: Acclaim Accelerate (2.5 gal) | D73: 2.5 gal. jug | F73: =INDEX(Pricing!$E$5:$G$101,MATCH('2024 FALL CALCULATOR'!$C73,Pricing!$A$5:$A$101,0),MATCH($C$22,Pricing!$E$4:$G$4,0)) -> 219.95 | G73: 0 | I73: 0 | J73: 0 | O73: =IF(OR(AW73 ="",AL73+AM73=0),0,E73*AY73*(AL73+AM73)) -> 0 | R73: 1.45 | S73: 63.162 | T73: =IF(AND(TRIM(S73)<>"",TRIM(E73)<>""),(E73*320)/S73,"") ->  | U73: 0 | V73: 0 | Y73: 1 | Z73: =AY73*0.05 -> 13.25 | AL73: 0 | AM73: 0 | AN73: 0 | AW73: =INDEX(Pricing!$A$5:$D$100,MATCH('2024 FALL CALCULATOR'!$C73,Pricing!$A$5:$A$100,0),MATCH("National",Pricing!$A$4:$D$4,0)) -> 219.95 | AX73: 0 | AY73: =INDEX(Pricing!$A$5:$K$100,MATCH('2024 FALL CALCULATOR'!$C73,Pricing!$A$5:$A$100,0),MATCH("Dist Suggested Min Price (DSMP)",Pricing!$A$4:$K$4,0)) -> 265 | AZ73: 0
B74: 5% Select/Tier | C74: Terradex™ Power Premix (2.5 gal) | D74: 2.5 gal. jug | F74: =INDEX(Pricing!$E$5:$G$101,MATCH('2024 FALL CALCULATOR'!$C74,Pricing!$A$5:$A$101,0),MATCH($C$22,Pricing!$E$4:$G$4,0)) -> 186.75 | G74: 0 | I74: 0 | J74: 0 | O74: 0 | R74: 1.5 | S74: 65.34 | T74: =IF(AND(TRIM(S74)<>"",TRIM(E74)<>""),(E74*320)/S74,"") ->  | U74: 0 | V74: 0 | Y74: 1 | Z74: 11.25 | AL74: 0 | AM74: 0 | AN74: 0 | AW74: =INDEX(Pricing!$A$5:$D$100,MATCH('2024 FALL CALCULATOR'!$C74,Pricing!$A$5:$A$100,0),MATCH("National",Pricing!$A$4:$D$4,0)) -> 186.75 | AX74: 0 | AY74: =INDEX(Pricing!$A$5:$K$100,MATCH('2024 FALL CALCULATOR'!$C74,Pricing!$A$5:$A$100,0),MATCH("Dist Suggested Min Price (DSMP)",Pricing!$A$4:$K$4,0)) -> 225 | AZ74: 0
B75: 5% Select/Tier | C75: Terradex™ Power Premix (30 gal) | D75: 30 gal. jug | F75: =INDEX(Pricing!$E$5:$G$101,MATCH('2024 FALL CALCULATOR'!$C75,Pricing!$A$5:$A$101,0),MATCH($C$22,Pricing!$E$4:$G$4,0)) -> 2041.8 | G75: 0 | I75: 0 | J75: 0 | O75: 0 | R75: 1.5 | S75: 65.34 | T75: =IF(AND(TRIM(S75)<>"",TRIM(E75)<>""),(E75*3840)/S75,"") ->  | U75: 0 | V75: 0 | Y75: 1 | Z75: 123 | AL75: 0 | AM75: 0 | AN75: 0 | AW75: =INDEX(Pricing!$A$5:$D$100,MATCH('2024 FALL CALCULATOR'!$C75,Pricing!$A$5:$A$100,0),MATCH("National",Pricing!$A$4:$D$4,0)) -> 2041.8 | AX75: 0 | AY75: =INDEX(Pricing!$A$5:$K$100,MATCH('2024 FALL CALCULATOR'!$C75,Pricing!$A$5:$A$100,0),MATCH("Dist Suggested Min Price (DSMP)",Pricing!$A$4:$K$4,0)) -> 2460 | AZ75: 0
B76: 5% Select/Tier | C76: Terradex™ Quick Strike (1 gal) | D76: 1 gal.jug | F76: =INDEX(Pricing!$E$5:$G$101,MATCH('2024 FALL CALCULATOR'!$C76,Pricing!$A$5:$A$101,0),MATCH($C$22,Pricing!$E$4:$G$4,0)) -> 66.4 | G76: 0 | I76: 0 | J76: 0 | O76: 0 | R76: 1.5 | S76: 65.34 | T76: =IF(AND(TRIM(S76)<>"",TRIM(E76)<>""),(E76*127.999939675621)/S76,"") ->  | U76: 0 | V76: 0 | Y76: 1 | Z76: 4 | AL76: 0 | AM76: 0 | AN76: 0 | AW76: =INDEX(Pricing!$A$5:$D$100,MATCH('2024 FALL CALCULATOR'!$C76,Pricing!$A$5:$A$100,0),MATCH("National",Pricing!$A$4:$D$4,0)) -> 66.4 | AX76: 0 | AY76: =INDEX(Pricing!$A$5:$K$100,MATCH('2024 FALL CALCULATOR'!$C76,Pricing!$A$5:$A$100,0),MATCH("Dist Suggested Min Price (DSMP)",Pricing!$A$4:$K$4,0)) -> 80 | AZ76: 0
B77: 5% Select/Tier | C77: Terradex™ Quick Strike (2.5 gal) | D77: 2.5 gal. jug | F77: =INDEX(Pricing!$E$5:$G$101,MATCH('2024 FALL CALCULATOR'!$C77,Pricing!$A$5:$A$101,0),MATCH($C$22,Pricing!$E$4:$G$4,0)) -> 157.7 | G77: 0 | I77: 0 | J77: 0 | O77: 0 | R77: 1.5 | S77: 65.34 | T77: =IF(AND(TRIM(S77)<>"",TRIM(E77)<>""),(E77*320)/S77,"") ->  | U77: 0 | V77: 0 | Y77: 1 | Z77: 9.5 | AL77: 0 | AM77: 0 | AN77: 0 | AW77: =INDEX(Pricing!$A$5:$D$100,MATCH('2024 FALL CALCULATOR'!$C77,Pricing!$A$5:$A$100,0),MATCH("National",Pricing!$A$4:$D$4,0)) -> 157.7 | AX77: 0 | AY77: =INDEX(Pricing!$A$5:$K$100,MATCH('2024 FALL CALCULATOR'!$C77,Pricing!$A$5:$A$100,0),MATCH("Dist Suggested Min Price (DSMP)",Pricing!$A$4:$K$4,0)) -> 190 | AZ77: 0
B78: 5% Select/Tier | C78: Terradex™ Quick Strike (30 gal) | D78: 30 gal. jug | F78: =INDEX(Pricing!$E$5:$G$101,MATCH('2024 FALL CALCULATOR'!$C78,Pricing!$A$5:$A$101,0),MATCH($C$22,Pricing!$E$4:$G$4,0)) -> 1792.8 | G78: 0 | I78: 0 | J78: 0 | O78: 0 | R78: 1.5 | S78: 65.34 | T78: =IF(AND(TRIM(S78)<>"",TRIM(E78)<>""),(E78*3840)/S78,"") ->  | U78: 0 | V78: 0 | Y78: 1 | Z78: 108 | AL78: 0 | AM78: 0 | AN78: 0 | AW78: =INDEX(Pricing!$A$5:$D$100,MATCH('2024 FALL CALCULATOR'!$C78,Pricing!$A$5:$A$100,0),MATCH("National",Pricing!$A$4:$D$4,0)) -> 1792.8 | AX78: 0 | AY78: =INDEX(Pricing!$A$5:$K$100,MATCH('2024 FALL CALCULATOR'!$C78,Pricing!$A$5:$A$100,0),MATCH("Dist Suggested Min Price (DSMP)",Pricing!$A$4:$K$4,0)) -> 2160 | AZ78: 0
B79: 5% Select/Tier | C79: Terradex™ Crabgrass & Broadleaf (1 gal) | D79: 1 gal jug | F79: =INDEX(Pricing!$E$5:$G$101,MATCH('2024 FALL CALCULATOR'!$C79,Pricing!$A$5:$A$101,0),MATCH($C$22,Pricing!$E$4:$G$4,0)) -> 94.62 | G79: 0 | I79: 0 | J79: 0 | O79: 0 | R79: 2.9 | S79: 126.324 | T79: =IF(AND(TRIM(S79)<>"",TRIM(E79)<>""),(E79*127.999939675621)/S79,"") ->  | U79: 0 | V79: 0 | Y79: 1 | Z79: 5.7 | AL79: 0 | AM79: 0 | AN79: 0 | AW79: =INDEX(Pricing!$A$5:$D$100,MATCH('2024 FALL CALCULATOR'!$C79,Pricing!$A$5:$A$100,0),MATCH("National",Pricing!$A$4:$D$4,0)) -> 94.62 | AX79: 0 | AY79: =INDEX(Pricing!$A$5:$K$100,MATCH('2024 FALL CALCULATOR'!$C79,Pricing!$A$5:$A$100,0),MATCH("Dist Suggested Min Price (DSMP)",Pricing!$A$4:$K$4,0)) -> 114 | AZ79: 0
B80: 5% Select/Tier | C80: Terradex™ Crabgrass & Broadleaf (2.5 gal) | D80: 2.5 gal.jug | F80: =INDEX(Pricing!$E$5:$G$101,MATCH('2024 FALL CALCULATOR'!$C80,Pricing!$A$5:$A$101,0),MATCH($C$22,Pricing!$E$4:$G$4,0)) -> 226.18 | G80: 0 | I80: 0 | J80: 0 | O80: 0 | R80: 2.9 | S80: 126.324 | T80: =IF(AND(TRIM(S80)<>"",TRIM(E80)<>""),(E80*320)/S80,"") ->  | U80: 0 | V80: 0 | Y80: 1 | Z80: 13.625 | AL80: 0 | AM80: 0 | AN80: 0 | AW80: =INDEX(Pricing!$A$5:$D$100,MATCH('2024 FALL CALCULATOR'!$C80,Pricing!$A$5:$A$100,0),MATCH("National",Pricing!$A$4:$D$4,0)) -> 226.18 | AX80: 0 | AY80: =INDEX(Pricing!$A$5:$K$100,MATCH('2024 FALL CALCULATOR'!$C80,Pricing!$A$5:$A$100,0),MATCH("Dist Suggested Min Price (DSMP)",Pricing!$A$4:$K$4,0)) -> 272.5 | AZ80: 0
B81: Purchase Tier | C81: 26 GT® | D81: 2.5 gal. jug | F81: =INDEX(Pricing!$E$5:$G$101,MATCH('2024 FALL CALCULATOR'!$C81,Pricing!$A$5:$A$101,0),MATCH($C$22,Pricing!$E$4:$G$4,0)) -> 503.9 | G81: 0 | I81: 0 | O81: 0 | R81: 4 | S81: 174.24 | T81: =IF(AND(TRIM(S81)<>"",TRIM(E81)<>""),(E81*319.999849189052)/S81,"") ->  | AL81: =IF(AND(E81 <>"",AN$92>=5000,AM$92<=0.07),0.01,0) -> 0 | AM81: =IF(E81 <>"", AM$92,0) -> 0 | AN81: =IF(E81 = "",0,IFERROR(F81*E81,0)) -> 0 | AW81: =INDEX(Pricing!$A$5:$D$100,MATCH('2024 FALL CALCULATOR'!$C81,Pricing!$A$5:$A$100,0),MATCH("National",Pricing!$A$4:$D$4,0)) -> 503.9 | AX81: 0 | AY81: =INDEX(Pricing!$A$5:$K$100,MATCH('2024 FALL CALCULATOR'!$C81,Pricing!$A$5:$A$100,0),MATCH("Dist Suggested Min Price (DSMP)",Pricing!$A$4:$K$4,0)) -> 0 | AZ81: 0
B82: Purchase Tier | C82: Chipco® Choice | D82: 50 lb. bag | F82: =INDEX(Pricing!$E$5:$G$101,MATCH('2024 FALL CALCULATOR'!$C82,Pricing!$A$5:$A$101,0),MATCH($C$22,Pricing!$E$4:$G$4,0)) -> 161 | G82: 0 | I82: 0 | O82: =IF(OR(AW82 ="",AL82+AM82=0),0,E82*AW82*(AL82+AM82)) -> 0 | P82: =IF(AND(E82<>"",E82>0),(H82-((SUM(J82:M82)+N82*E82+O82)/E82)),"") ->  | S82: 25 | T82: =IF(AND(TRIM(S82)<>"",TRIM(E82)<>""),(E82*50)/S82,"") ->  | AL82: 0 | AM82: 0 | AN82: 0 | AW82: =INDEX(Pricing!$A$5:$D$100,MATCH('2024 FALL CALCULATOR'!$C82,Pricing!$A$5:$A$100,0),MATCH("National",Pricing!$A$4:$D$4,0)) -> 161 | AX82: 0 | AY82: =INDEX(Pricing!$A$5:$K$100,MATCH('2024 FALL CALCULATOR'!$C82,Pricing!$A$5:$A$100,0),MATCH("Dist Suggested Min Price (DSMP)",Pricing!$A$4:$K$4,0)) -> 0 | AZ82: 0
B83: Purchase Tier | C83: Dylox 420 SL | D83: 2.5 gal jug | F83: =INDEX(Pricing!$E$5:$G$101,MATCH('2024 FALL CALCULATOR'!$C83,Pricing!$A$5:$A$101,0),MATCH($C$22,Pricing!$E$4:$G$4,0)) -> 218.75 | G83: 0 | I83: 0 | O83: 0 | P83: =IF(AND(E83<>"",E83>0),(H83-((SUM(J83:M83)+N83*E83+O83)/E83)),"") ->  | R83: 4.59 | S83: 12.5 | T83: =IF(AND(TRIM(S83)<>"",TRIM(E83)<>""),(E83*319.999849189052)/S83,"") ->  | AL83: 0 | AM83: 0 | AN83: 0 | AW83: =INDEX(Pricing!$A$5:$D$100,MATCH('2024 FALL CALCULATOR'!$C83,Pricing!$A$5:$A$100,0),MATCH("National",Pricing!$A$4:$D$4,0)) -> 218.75 | AX83: 0 | AY83: =INDEX(Pricing!$A$5:$K$100,MATCH('2024 FALL CALCULATOR'!$C83,Pricing!$A$5:$A$100,0),MATCH("Dist Suggested Min Price (DSMP)",Pricing!$A$4:$K$4,0)) -> 0 | AZ83: 0
B84: Purchase Tier | C84: Forbid® | D84: 8 fl.oz. bottle | F84: =INDEX(Pricing!$E$5:$G$101,MATCH('2024 FALL CALCULATOR'!$C84,Pricing!$A$5:$A$101,0),MATCH($C$22,Pricing!$E$4:$G$4,0)) -> 244.18 | G84: 0 | I84: 0 | O84: 0 | R84: 3 | S84: 130.68 | T84: =IF(AND(TRIM(S84)<>"",TRIM(E84)<>""),(E84*8)/S84,"") ->  | AL84: 0 | AM84: 0 | AN84: 0 | AW84: =INDEX(Pricing!$A$5:$D$100,MATCH('2024 FALL CALCULATOR'!$C84,Pricing!$A$5:$A$100,0),MATCH("National",Pricing!$A$4:$D$4,0)) -> 244.18 | AX84: 0 | AY84: =INDEX(Pricing!$A$5:$K$100,MATCH('2024 FALL CALCULATOR'!$C84,Pricing!$A$5:$A$100,0),MATCH("Dist Suggested Min Price (DSMP)",Pricing!$A$4:$K$4,0)) -> 0 | AZ84: 0
B85: Purchases count towards rebate tier but do not receive purchase tier rebate | C85: Merit® 75 WSP | D85: 4x1.6 oz | F85: =INDEX(Pricing!$E$5:$G$101,MATCH('2024 FALL CALCULATOR'!$C85,Pricing!$A$5:$A$101,0),MATCH($C$22,Pricing!$E$4:$G$4,0)) -> 102.64 | G85: 0 | I85: 0 | R85: 0.145 | S85: =R85*43.56 -> 6.3162 | T85: =IF(AND(TRIM(S85)<>"",TRIM(E85)<>""),(E85*16)/S85,"") ->  | U85: 0 | V85: 0 | AN85: 0 | AW85: =INDEX(Pricing!$A$5:$D$100,MATCH('2024 FALL CALCULATOR'!$C85,Pricing!$A$5:$A$100,0),MATCH("National",Pricing!$A$4:$D$4,0)) -> 102.64 | AX85: 0 | AY85: =INDEX(Pricing!$A$5:$K$100,MATCH('2024 FALL CALCULATOR'!$C85,Pricing!$A$5:$A$100,0),MATCH("Dist Suggested Min Price (DSMP)",Pricing!$A$4:$K$4,0)) -> 0 | AZ85: 0
C86: Merit 2F | D86: 1 gal. jug | F86: =INDEX(Pricing!$E$5:$G$101,MATCH('2024 FALL CALCULATOR'!$C86,Pricing!$A$5:$A$101,0),MATCH($C$22,Pricing!$E$4:$G$4,0)) -> 40.15 | G86: 0 | I86: 0 | R86: 0.6 | S86: 26.136 | T86: =IF(AND(TRIM(S86)<>"",TRIM(E86)<>""),(E86*127.999939675621)/S86,"") ->  | U86: 0 | V86: 0 | AN86: 0 | AW86: =INDEX(Pricing!$A$5:$D$100,MATCH('2024 FALL CALCULATOR'!$C86,Pricing!$A$5:$A$100,0),MATCH("National",Pricing!$A$4:$D$4,0)) -> 40.15 | AX86: 0 | AY86: =INDEX(Pricing!$A$5:$K$100,MATCH('2024 FALL CALCULATOR'!$C86,Pricing!$A$5:$A$100,0),MATCH("Dist Suggested Min Price (DSMP)",Pricing!$A$4:$K$4,0)) -> 0 | AZ86: 0
C87: Prograss® EC | D87: 2.5 gal jug | F87: =INDEX(Pricing!$E$5:$G$101,MATCH('2024 FALL CALCULATOR'!$C87,Pricing!$A$5:$A$101,0),MATCH($C$22,Pricing!$E$4:$G$4,0)) -> 368.25 | G87: 0 | I87: 0 | R87: 1.5 | S87: 65.34 | T87: =IF(AND(TRIM(S87)<>"",TRIM(E87)<>""),(E87*319.999849189052)/S87,"") ->  | AN87: 0 | AW87: =INDEX(Pricing!$A$5:$D$100,MATCH('2024 FALL CALCULATOR'!$C87,Pricing!$A$5:$A$100,0),MATCH("National",Pricing!$A$4:$D$4,0)) -> 368.25 | AX87: 0 | AY87: =INDEX(Pricing!$A$5:$K$100,MATCH('2024 FALL CALCULATOR'!$C87,Pricing!$A$5:$A$100,0),MATCH("Dist Suggested Min Price (DSMP)",Pricing!$A$4:$K$4,0)) -> 0 | AZ87: 0
C88: Proxy® | D88: 2.5 gal. jug | F88: =INDEX(Pricing!$E$5:$G$101,MATCH('2024 FALL CALCULATOR'!$C88,Pricing!$A$5:$A$101,0),MATCH($C$22,Pricing!$E$4:$G$4,0)) -> 102.25 | G88: 0 | I88: 0 | R88: 5 | S88: 217.8 | T88: =IF(AND(TRIM(S88)<>"",TRIM(E88)<>""),(E88*319.999849189052)/S88,"") ->  | AN88: 0 | AW88: =INDEX(Pricing!$A$5:$D$100,MATCH('2024 FALL CALCULATOR'!$C88,Pricing!$A$5:$A$100,0),MATCH("National",Pricing!$A$4:$D$4,0)) -> 102.25 | AX88: 0 | AY88: =INDEX(Pricing!$A$5:$K$100,MATCH('2024 FALL CALCULATOR'!$C88,Pricing!$A$5:$A$100,0),MATCH("Dist Suggested Min Price (DSMP)",Pricing!$A$4:$K$4,0)) -> 0 | AZ88: 0
B89: Purchase Tier | C89: Revolver®(32 oz. bottle) | D89: 32 oz bottle | F89: =INDEX(Pricing!$E$5:$G$101,MATCH('2024 FALL CALCULATOR'!$C89,Pricing!$A$5:$A$101,0),MATCH($C$22,Pricing!$E$4:$G$4,0)) -> 288.56 | G89: 0 | I89: 0 | O89: =IF(OR(AW89 ="",AL89+AM89=0),0,E89*AW89*(AL89+AM89)) -> 0 | R89: 0.4 | S89: 17.42 | T89: =IF(AND(TRIM(S89)<>"",TRIM(E89)<>""),(E89*32)/S89,"") ->  | AL89: =IF(AND(E89 <>"",AN$92>=5000,AM$92<=0.07),0.01,0) -> 0 | AM89: =IF(E89 <>"", AM$92,0) -> 0 | AN89: 0 | AW89: =INDEX(Pricing!$A$5:$D$100,MATCH('2024 FALL CALCULATOR'!$C89,Pricing!$A$5:$A$100,0),MATCH("National",Pricing!$A$4:$D$4,0)) -> 288.56 | AX89: 0 | AY89: =INDEX(Pricing!$A$5:$K$100,MATCH('2024 FALL CALCULATOR'!$C89,Pricing!$A$5:$A$100,0),MATCH("Dist Suggested Min Price (DSMP)",Pricing!$A$4:$K$4,0)) -> 0 | AZ89: 0
B90: Purchase Tier | C90: Sencor® 75 | D90: 5 lb.bottle | F90: =INDEX(Pricing!$E$5:$G$101,MATCH('2024 FALL CALCULATOR'!$C90,Pricing!$A$5:$A$101,0),MATCH($C$22,Pricing!$E$4:$G$4,0)) -> 586 | G90: 0 | I90: 0 | O90: 0 | R90: 0.242 | S90: 0.66 | T90: =IF(AND(TRIM(S90)<>"",TRIM(E90)<>""),(E90*5)/S90,"") ->  | AL90: 0 | AM90: 0 | AN90: 0 | AW90: =INDEX(Pricing!$A$5:$D$100,MATCH('2024 FALL CALCULATOR'!$C90,Pricing!$A$5:$A$100,0),MATCH("National",Pricing!$A$4:$D$4,0)) -> 586 | AX90: 0 | AY90: =INDEX(Pricing!$A$5:$K$100,MATCH('2024 FALL CALCULATOR'!$C90,Pricing!$A$5:$A$100,0),MATCH("Dist Suggested Min Price (DSMP)",Pricing!$A$4:$K$4,0)) -> 0 | AZ90: 0
B91: Purchases count towards rebate tier but do not receive purchase tier rebate | C91: Topchoice® | D91: 50 lb. bag | F91: =INDEX(Pricing!$E$5:$G$101,MATCH('2024 FALL CALCULATOR'!$C91,Pricing!$A$5:$A$101,0),MATCH($C$22,Pricing!$E$4:$G$4,0)) -> 63 | G91: 0 | I91: 0 | S91: 87 | T91: =IF(AND(TRIM(S91)<>"",TRIM(E91)<>""),(E91*50)/S91,"") ->  | AN91: 0 | AW91: =INDEX(Pricing!$A$5:$D$100,MATCH('2024 FALL CALCULATOR'!$C91,Pricing!$A$5:$A$100,0),MATCH("National",Pricing!$A$4:$D$4,0)) -> 63 | AX91: 0 | AY91: =INDEX(Pricing!$A$5:$K$100,MATCH('2024 FALL CALCULATOR'!$C91,Pricing!$A$5:$A$100,0),MATCH("Dist Suggested Min Price (DSMP)",Pricing!$A$4:$K$4,0)) -> 0 | AZ91: 0
G92: =SUM(G28:G64) + SUM(G70:G91) -> 5478 | I92: =SUM(I28:I64) + SUM(I70:I91) -> 5478 | J92: =SUM(J28:J64) + SUM(J70:J91) -> 275 | K92: =SUM(K28:K64) + SUM(K70:K91) -> 0 | L92: =SUM(L28:L64) + SUM(L70:L91) -> 0 | M92: =SUM(M28:M64) + SUM(M70:M91) -> 0 | N92: =SUMPRODUCT(N28:N64,E28:E64) -> 0 | O92: 219.12 | Q92: =SUM(Q28:Q64) + SUM(Q70:Q91) -> 4983.88 | AM92: =IF(OR(AN$92="",AN$92<=$AL$17),0,(VLOOKUP(AN92,AL17:AN22,3))) -> 0.03 | AN92: =SUM(AN28:AN64) + SUM(AN70:AN91) -> 5478
B94: Summary
B95: Summary is provided as an estimate only. See program rules and conditions.
B97: Total Before Off Invoice Volume Discounts | E97: =IF(G92<I92,I92,G92) -> 5478
B98: Off Invoice Volume Discount | E98: =IF((SUM(G28:G64)-SUM(I28:I64))<0,0,(SUM(G28:G64)-SUM(I28:I64))) -> 0
B99: Invoice Total | E99: =I92 -> 5478
B100: Purchase Tier Level Standard calculation assumes order is invoiced by Oct 31, 2024 and will receive 1% Oct bonus to purchase tier rebate | E100: =IF(AND(I92<>"",I92> 0),O27,0) -> 0.04
B101: Rebate Total Program Purchase must be a minimum of $5,000 to receive rebates | E101: =SUM(J92:O92) -> 494.12
B102: Net Total after Rebate | E102: =Q92 -> 4983.88
B103: Rebate % Total Program Purchase must be a minimum of $5,000 to receive rebates | E103: =IF(AND(I92<>"",I92>0),MIN((E101/E99),1),0) -> 0.09020080321
B104: Total Savings (Rebates + Off Invoice Volume Discounts) | E104: =E98+E101 -> 494.12
B105: Total Savings % (Rebates + Off Invoice Volume Discounts) | E105: =IF(AND(E97 <> "", E97 > 0), E104/E97,0) -> 0.09020080321
B107: =CONCATENATE("Estimated MER points to be earned: ",TEXT(IF(AND(E101 <>"", E101 > 0),E101*100, 0),"#,##0")) -> Estimated MER points to be earned: 49,412 | I107: =V13 -> Fall Solutions National Calculator - version 2024-0009-0017

Sheet SUMMARY
G8: ='2024 FALL CALCULATOR'!V13 -> Fall Solutions National Calculator - version 2024-0009-0017
B9: ='2024 FALL CALCULATOR'!B16 -> NAME YOUR DRAFT ORDER HERE:
B10: Description: | C10: =IF('2024 FALL CALCULATOR'!C17="","",'2024 FALL CALCULATOR'!C17) -> 
B11: Distributor/DSR: | C11: =IF('2024 FALL CALCULATOR'!C18="","",'2024 FALL CALCULATOR'!C18) -> 
B12: MER#: | C12: =IF('2024 FALL CALCULATOR'!C19="","",'2024 FALL CALCULATOR'!C19) -> 
B13: Last Updated: | C13: =IF('2024 FALL CALCULATOR'!C20="","",'2024 FALL CALCULATOR'!C20) -> 
B14: Created For: | C14: =IF('2024 FALL CALCULATOR'!C21="","",'2024 FALL CALCULATOR'!C21) -> 
B15: Region: | C15: =IF('2024 FALL CALCULATOR'!C22="","",'2024 FALL CALCULATOR'!C22) -> National
B17: PRODUCT NAME | C17: UNIT SIZE | D17: # UNITS | E17: PRICE/UNIT | F17: SUBTOTAL | G17: NET PRICE/UNIT
B20: ='2024 FALL CALCULATOR'!C28 -> Altus (64 fl.oz. bottle), 1-15 | C20: ='2024 FALL CALCULATOR'!D28 -> 64 fl oz | D20: ='2024 FALL CALCULATOR'!E28 -> 0 | E20: ='2024 FALL CALCULATOR'!H28 -> 428.4 | F20: ='2024 FALL CALCULATOR'!I28 -> 0 | G20: ='2024 FALL CALCULATOR'!P28 -> 
B21: ='2024 FALL CALCULATOR'!C29 -> Altus (64 fl.oz. bottle), 16-31 | C21: ='2024 FALL CALCULATOR'!D29 -> 64 fl oz | D21: ='2024 FALL CALCULATOR'!E29 -> 0 | E21: ='2024 FALL CALCULATOR'!H29 -> 406.98 | F21: ='2024 FALL CALCULATOR'!I29 -> 0 | G21: ='2024 FALL CALCULATOR'!P29 -> 
B22: ='2024 FALL CALCULATOR'!C30 -> Altus (64 fl.oz. bottle), 32+ | C22: ='2024 FALL CALCULATOR'!D30 -> 64 fl oz | D22: ='2024 FALL CALCULATOR'!E30 -> 0 | E22: ='2024 FALL CALCULATOR'!H30 -> 385.56 | F22: ='2024 FALL CALCULATOR'!I30 -> 0 | G22: ='2024 FALL CALCULATOR'!P30 -> 
B23: ='2024 FALL CALCULATOR'!C31 -> Banol® | C23: ='2024 FALL CALCULATOR'!D31 -> 2.5 gal. bottle | D23: ='2024 FALL CALCULATOR'!E31 -> 0 | E23: ='2024 FALL CALCULATOR'!H31 -> 1254 | F23: ='2024 FALL CALCULATOR'!I31 -> 0 | G23: ='2024 FALL CALCULATOR'!P31 -> 
B24: ='2024 FALL CALCULATOR'!C32 -> Celsius | C24: ='2024 FALL CALCULATOR'!D32 -> 10 oz. bottle | D24: ='2024 FALL CALCULATOR'!E32 -> 0 | E24: ='2024 FALL CALCULATOR'!H32 -> 128.4 | F24: ='2024 FALL CALCULATOR'!I32 -> 0 | G24: ='2024 FALL CALCULATOR'!P32 -> 
B25: ='2024 FALL CALCULATOR'!C33 -> Celsius XTRA | C25: ='2024 FALL CALCULATOR'!D33 -> 10 oz. bottle | D25: ='2024 FALL CALCULATOR'!E33 -> 0 | E25: ='2024 FALL CALCULATOR'!H33 -> 166.4 | F25: ='2024 FALL CALCULATOR'!I33 -> 0 | G25: ='2024 FALL CALCULATOR'!P33 -> 
B26: ='2024 FALL CALCULATOR'!C34 -> Chipco Signature Stressgard (1-8 units) | C26: ='2024 FALL CALCULATOR'!D34 -> 11 lb. bottle | D26: ='2024 FALL CALCULATOR'!E34 -> 0 | E26: ='2024 FALL CALCULATOR'!H34 -> 392.8 | F26: ='2024 FALL CALCULATOR'!I34 -> 0 | G26: ='2024 FALL CALCULATOR'!P34 -> 
B27: ='2024 FALL CALCULATOR'!C35 -> Chipco Signature Stressgard (9+ units) | C27: ='2024 FALL CALCULATOR'!D35 -> 11 lb. bottle | D27: ='2024 FALL CALCULATOR'!E35 -> 0 | E27: ='2024 FALL CALCULATOR'!H35 -> 368.8 | F27: ='2024 FALL CALCULATOR'!I35 -> 0 | G27: ='2024 FALL CALCULATOR'!P35 -> 
B28: ='2024 FALL CALCULATOR'!C36 -> Castlon™ (1 gal.) | C28: ='2024 FALL CALCULATOR'!D36 -> 1 gal. bottle | D28: ='2024 FALL CALCULATOR'!E36 -> 0 | E28: ='2024 FALL CALCULATOR'!H36 -> 2600 | F28: ='2024 FALL CALCULATOR'!I36 -> 0 | G28: ='2024 FALL CALCULATOR'!P36 -> 
B29: ='2024 FALL CALCULATOR'!C37 -> Castlon™ (16oz.) | C29: ='2024 FALL CALCULATOR'!D37 -> 16 oz. bottle | D29: ='2024 FALL CALCULATOR'!E37 -> 0 | E29: ='2024 FALL CALCULATOR'!H37 -> 366.5 | F29: ='2024 FALL CALCULATOR'!I37 -> 0 | G29: ='2024 FALL CALCULATOR'!P37 -> 
B30: ='2024 FALL CALCULATOR'!C38 -> Densicor® | C30: ='2024 FALL CALCULATOR'!D38 -> 51 oz. bottle | D30: ='2024 FALL CALCULATOR'!E38 -> 0 | E30: ='2024 FALL CALCULATOR'!H38 -> 739.6 | F30: ='2024 FALL CALCULATOR'!I38 -> 0 | G30: ='2024 FALL CALCULATOR'!P38 -> 
B31: ='2024 FALL CALCULATOR'!C39 -> Exteris® Stressgard® | C31: ='2024 FALL CALCULATOR'!D39 -> 2.5 gal jug | D31: ='2024 FALL CALCULATOR'!E39 -> 0 | E31: ='2024 FALL CALCULATOR'!H39 -> 366 | F31: ='2024 FALL CALCULATOR'!I39 -> 0 | G31: ='2024 FALL CALCULATOR'!P39 -> 
B32: ='2024 FALL CALCULATOR'!C40 -> Fiata® Stressgard® | C32: ='2024 FALL CALCULATOR'!D40 -> 2.5 gal jug | D32: ='2024 FALL CALCULATOR'!E40 -> 0 | E32: ='2024 FALL CALCULATOR'!H40 -> 190 | F32: ='2024 FALL CALCULATOR'!I40 -> 0 | G32: ='2024 FALL CALCULATOR'!P40 -> 
B33: ='2024 FALL CALCULATOR'!C41 -> Indemnify® (1-2 units) | C33: ='2024 FALL CALCULATOR'!D41 -> 17.1 oz. bottle | D33: ='2024 FALL CALCULATOR'!E41 -> 0 | E33: ='2024 FALL CALCULATOR'!H41 -> 1963.6 | F33: ='2024 FALL CALCULATOR'!I41 -> 0 | G33: ='2024 FALL CALCULATOR'!P41 -> 
B34: ='2024 FALL CALCULATOR'!C42 -> Indemnify® (3+ units) | C34: ='2024 FALL CALCULATOR'!D42 -> 17.1 oz. bottle | D34: ='2024 FALL CALCULATOR'!E42 -> 0 | E34: ='2024 FALL CALCULATOR'!H42 -> 1767.2 | F34: ='2024 FALL CALCULATOR'!I42 -> 0 | G34: ='2024 FALL CALCULATOR'!P42 -> 
B35: ='2024 FALL CALCULATOR'!C43 -> Interface® Stressgard® (1-5 units) | C35: ='2024 FALL CALCULATOR'!D43 -> 2.5 gal. bottle | D35: ='2024 FALL CALCULATOR'!E43 -> 0 | E35: ='2024 FALL CALCULATOR'!H43 -> 561 | F35: ='2024 FALL CALCULATOR'!I43 -> 0 | G35: ='2024 FALL CALCULATOR'!P43 -> 
B36: ='2024 FALL CALCULATOR'!C44 -> Interface® Stressgard® (6+ units) | C36: ='2024 FALL CALCULATOR'!D44 -> 2.5 gal. bottle | D36: ='2024 FALL CALCULATOR'!E44 -> 0 | E36: ='2024 FALL CALCULATOR'!H44 -> 494 | F36: ='2024 FALL CALCULATOR'!I44 -> 0 | G36: ='2024 FALL CALCULATOR'!P44 -> 
B37: ='2024 FALL CALCULATOR'!C45 -> Kontos (1-11 units) | C37: ='2024 FALL CALCULATOR'!D45 -> 250 ml. bottle | D37: ='2024 FALL CALCULATOR'!E45 -> 0 | E37: ='2024 FALL CALCULATOR'!H45 -> 221.6 | F37: ='2024 FALL CALCULATOR'!I45 -> 0 | G37: ='2024 FALL CALCULATOR'!P45 -> 
B38: ='2024 FALL CALCULATOR'!C46 -> Kontos (12-29 units) | C38: ='2024 FALL CALCULATOR'!D46 -> 250 ml. bottle | D38: ='2024 FALL CALCULATOR'!E46 -> 0 | E38: ='2024 FALL CALCULATOR'!H46 -> 210.52 | F38: ='2024 FALL CALCULATOR'!I46 -> 0 | G38: ='2024 FALL CALCULATOR'!P46 -> 
B39: ='2024 FALL CALCULATOR'!C47 -> Kontos (30+ units) | C39: ='2024 FALL CALCULATOR'!D47 -> 250 ml. bottle | D39: ='2024 FALL CALCULATOR'!E47 -> 0 | E39: ='2024 FALL CALCULATOR'!H47 -> 199.44 | F39: ='2024 FALL CALCULATOR'!I47 -> 0 | G39: ='2024 FALL CALCULATOR'!P47 -> 
B40: ='2024 FALL CALCULATOR'!C48 -> Mirage® Stressgard® | C40: ='2024 FALL CALCULATOR'!D48 -> 2.5 gal. bottle | D40: ='2024 FALL CALCULATOR'!E48 -> 0 | E40: ='2024 FALL CALCULATOR'!H48 -> 488 | F40: ='2024 FALL CALCULATOR'!I48 -> 0 | G40: ='2024 FALL CALCULATOR'!P48 -> 
B41: ='2024 FALL CALCULATOR'!C49 -> Resilia ™ | C41: ='2024 FALL CALCULATOR'!D49 -> 2.72 gal. bottle | D41: ='2024 FALL CALCULATOR'!E49 -> 0 | E41: ='2024 FALL CALCULATOR'!H49 -> 918.87 | F41: ='2024 FALL CALCULATOR'!I49 -> 0 | G41: ='2024 FALL CALCULATOR'!P49 -> 
B42: ='2024 FALL CALCULATOR'!C50 -> Ronstar® FLO 1 to 11 | C42: ='2024 FALL CALCULATOR'!D50 -> 2.5 gal jug | D42: ='2024 FALL CALCULATOR'!E50 -> 0 | E42: ='2024 FALL CALCULATOR'!H50 -> 552 | F42: ='2024 FALL CALCULATOR'!I50 -> 0 | G42: ='2024 FALL CALCULATOR'!P50 -> 
B43: ='2024 FALL CALCULATOR'!C51 -> Ronstar® FLO 12 to 39 | C43: ='2024 FALL CALCULATOR'!D51 -> 2.5 gal jug | D43: ='2024 FALL CALCULATOR'!E51 -> 0 | E43: ='2024 FALL CALCULATOR'!H51 -> 453 | F43: ='2024 FALL CALCULATOR'!I51 -> 0 | G43: ='2024 FALL CALCULATOR'!P51 -> 
B44: ='2024 FALL CALCULATOR'!C52 -> Ronstar® FLO 40+ | C44: ='2024 FALL CALCULATOR'!D52 -> 2.5 gal jug | D44: ='2024 FALL CALCULATOR'!E52 -> 0 | E44: ='2024 FALL CALCULATOR'!H52 -> 393 | F44: ='2024 FALL CALCULATOR'!I52 -> 0 | G44: ='2024 FALL CALCULATOR'!P52 -> 
B45: ='2024 FALL CALCULATOR'!C53 -> Revolver® (87 oz. bottle) | C45: ='2024 FALL CALCULATOR'!D53 -> 87 oz. bottle | D45: ='2024 FALL CALCULATOR'!E53 -> 0 | E45: ='2024 FALL CALCULATOR'!H53 -> 758 | F45: ='2024 FALL CALCULATOR'!I53 -> 0 | G45: ='2024 FALL CALCULATOR'!P53 -> 
B46: ='2024 FALL CALCULATOR'!C54 -> Signature XTRA Stressgard (1 to 23) | C46: ='2024 FALL CALCULATOR'!D54 -> 5.5 lb bottle | D46: ='2024 FALL CALCULATOR'!E54 -> 0 | E46: ='2024 FALL CALCULATOR'!H54 -> 210.4 | F46: ='2024 FALL CALCULATOR'!I54 -> 0 | G46: ='2024 FALL CALCULATOR'!P54 -> 
B47: ='2024 FALL CALCULATOR'!C55 -> Signature XTRA Stressgard (24+) | C47: ='2024 FALL CALCULATOR'!D55 -> 5.5 lb bottle | D47: ='2024 FALL CALCULATOR'!E55 -> 0 | E47: ='2024 FALL CALCULATOR'!H55 -> 192.8 | F47: ='2024 FALL CALCULATOR'!I55 -> 0 | G47: ='2024 FALL CALCULATOR'!P55 -> 
B48: ='2024 FALL CALCULATOR'!C56 -> Specticle® FLO (1-6 units) | C48: ='2024 FALL CALCULATOR'!D56 -> 1 gal. bottle | D48: ='2024 FALL CALCULATOR'!E56 -> 0 | E48: ='2024 FALL CALCULATOR'!H56 -> 1968.4 | F48: ='2024 FALL CALCULATOR'!I56 -> 0 | G48: ='2024 FALL CALCULATOR'!P56 -> 
B49: ='2024 FALL CALCULATOR'!C57 -> Specticle® FLO (7-13 units) | C49: ='2024 FALL CALCULATOR'!D57 -> 1 gal. bottle | D49: ='2024 FALL CALCULATOR'!E57 -> 0 | E49: ='2024 FALL CALCULATOR'!H57 -> 1895.88 | F49: ='2024 FALL CALCULATOR'!I57 -> 0 | G49: ='2024 FALL CALCULATOR'!P57 -> 
B50: ='2024 FALL CALCULATOR'!C58 -> Specticle® FLO (14-25 units) | C50: ='2024 FALL CALCULATOR'!D58 -> 1 gal. bottle | D50: ='2024 FALL CALCULATOR'!E58 -> 0 | E50: ='2024 FALL CALCULATOR'!H58 -> 1657.6 | F50: ='2024 FALL CALCULATOR'!I58 -> 0 | G50: ='2024 FALL CALCULATOR'!P58 -> 
B51: ='2024 FALL CALCULATOR'!C59 -> Specticle® FLO (26+ units) | C51: ='2024 FALL CALCULATOR'!D59 -> 1 gal. bottle | D51: ='2024 FALL CALCULATOR'!E59 -> 0 | E51: ='2024 FALL CALCULATOR'!H59 -> 1533.28 | F51: ='2024 FALL CALCULATOR'!I59 -> 0 | G51: ='2024 FALL CALCULATOR'!P59 -> 
B52: ='2024 FALL CALCULATOR'!C60 -> Specticle® G | C52: ='2024 FALL CALCULATOR'!D60 -> 50 lb. bag | D52: ='2024 FALL CALCULATOR'!E60 -> 0 | E52: ='2024 FALL CALCULATOR'!H60 -> 128 | F52: ='2024 FALL CALCULATOR'!I60 -> 0 | G52: ='2024 FALL CALCULATOR'!P60 -> 
B53: ='2024 FALL CALCULATOR'!C61 -> Tartan® Stressgard® (1 to 5 units) | C53: ='2024 FALL CALCULATOR'!D61 -> 2.5 gal | D53: ='2024 FALL CALCULATOR'!E61 -> 0 | E53: ='2024 FALL CALCULATOR'!H61 -> 1033 | F53: ='2024 FALL CALCULATOR'!I61 -> 0 | G53: ='2024 FALL CALCULATOR'!P61 -> 
B54: ='2024 FALL CALCULATOR'!C62 -> Tartan® Stressgard® 6+ | C54: ='2024 FALL CALCULATOR'!D62 -> 2.5 gal | D54: ='2024 FALL CALCULATOR'!E62 -> 0 | E54: ='2024 FALL CALCULATOR'!H62 -> 940 | F54: ='2024 FALL CALCULATOR'!I62 -> 0 | G54: ='2024 FALL CALCULATOR'!P62 -> 
B55: ='2024 FALL CALCULATOR'!C63 -> Tribute® Total | C55: ='2024 FALL CALCULATOR'!D63 -> 6 oz. bottle | D55: ='2024 FALL CALCULATOR'!E63 -> 0 | E55: ='2024 FALL CALCULATOR'!H63 -> 413.6 | F55: ='2024 FALL CALCULATOR'!I63 -> 0 | G55: ='2024 FALL CALCULATOR'!P63 -> 
B56: ='2024 FALL CALCULATOR'!C64 -> Tetrino® | C56: ='2024 FALL CALCULATOR'!D64 -> 1 gal bottle | D56: ='2024 FALL CALCULATOR'!E64 -> 11 | E56: ='2024 FALL CALCULATOR'!H64 -> 498 | F56: ='2024 FALL CALCULATOR'!I64 -> 5478 | G56: ='2024 FALL CALCULATOR'!P64 -> 453.08
B57: ='2024 FALL CALCULATOR'!C70 -> Armada® 50 WDG | C57: ='2024 FALL CALCULATOR'!D70 -> 2 lb. bottle | D57: ='2024 FALL CALCULATOR'!E70 -> 0 | E57: ='2024 FALL CALCULATOR'!H70 -> 0 | F57: ='2024 FALL CALCULATOR'!I70 -> 0 | G57: ='2024 FALL CALCULATOR'!P70 -> 
B58: ='2024 FALL CALCULATOR'!C71 -> Acclaim® Extra (1 gal) | C58: ='2024 FALL CALCULATOR'!D71 -> 1 gal. jug | D58: ='2024 FALL CALCULATOR'!E71 -> 0 | E58: ='2024 FALL CALCULATOR'!H71 -> 0 | F58: ='2024 FALL CALCULATOR'!I71 -> 0 | G58: ='2024 FALL CALCULATOR'!P71 -> 
B59: ='2024 FALL CALCULATOR'!C72 -> Acclaim Accelerate (0.5 gal) | C59: ='2024 FALL CALCULATOR'!D72 -> .5 gal. jug | D59: ='2024 FALL CALCULATOR'!E72 -> 0 | E59: ='2024 FALL CALCULATOR'!H72 -> 0 | F59: ='2024 FALL CALCULATOR'!I72 -> 0 | G59: ='2024 FALL CALCULATOR'!P72 -> 
B60: ='2024 FALL CALCULATOR'!C73 -> Acclaim Accelerate (2.5 gal) | C60: ='2024 FALL CALCULATOR'!D73 -> 2.5 gal. jug | D60: ='2024 FALL CALCULATOR'!E73 -> 0 | E60: ='2024 FALL CALCULATOR'!H73 -> 0 | F60: ='2024 FALL CALCULATOR'!I73 -> 0 | G60: ='2024 FALL CALCULATOR'!P73 -> 
B61: ='2024 FALL CALCULATOR'!C74 -> Terradex™ Power Premix (2.5 gal) | C61: ='2024 FALL CALCULATOR'!D74 -> 2.5 gal. jug | D61: ='2024 FALL CALCULATOR'!E74 -> 0 | E61: ='2024 FALL CALCULATOR'!H74 -> 0 | F61: ='2024 FALL CALCULATOR'!I74 -> 0 | G61: ='2024 FALL CALCULATOR'!P74 -> 
B62: ='2024 FALL CALCULATOR'!C75 -> Terradex™ Power Premix (30 gal) | C62: ='2024 FALL CALCULATOR'!D75 -> 30 gal. jug | D62: ='2024 FALL CALCULATOR'!E75 -> 0 | E62: ='2024 FALL CALCULATOR'!H75 -> 0 | F62: ='2024 FALL CALCULATOR'!I75 -> 0 | G62: ='2024 FALL CALCULATOR'!P75 -> 
B63: ='2024 FALL CALCULATOR'!C76 -> Terradex™ Quick Strike (1 gal) | C63: ='2024 FALL CALCULATOR'!D76 -> 1 gal.jug | D63: ='2024 FALL CALCULATOR'!E76 -> 0 | E63: ='2024 FALL CALCULATOR'!H76 -> 0 | F63: ='2024 FALL CALCULATOR'!I76 -> 0 | G63: ='2024 FALL CALCULATOR'!P76 -> 
B64: ='2024 FALL CALCULATOR'!C77 -> Terradex™ Quick Strike (2.5 gal) | C64: ='2024 FALL CALCULATOR'!D77 -> 2.5 gal. jug | D64: ='2024 FALL CALCULATOR'!E77 -> 0 | E64: ='2024 FALL CALCULATOR'!H77 -> 0 | F64: ='2024 FALL CALCULATOR'!I77 -> 0 | G64: ='2024 FALL CALCULATOR'!P77 -> 
B65: ='2024 FALL CALCULATOR'!C78 -> Terradex™ Quick Strike (30 gal) | C65: ='2024 FALL CALCULATOR'!D78 -> 30 gal. jug | D65: ='2024 FALL CALCULATOR'!E78 -> 0 | E65: ='2024 FALL CALCULATOR'!H78 -> 0 | F65: ='2024 FALL CALCULATOR'!I78 -> 0 | G65: ='2024 FALL CALCULATOR'!P78 -> 
B66: ='2024 FALL CALCULATOR'!C79 -> Terradex™ Crabgrass & Broadleaf (1 gal) | C66: ='2024 FALL CALCULATOR'!D79 -> 1 gal jug | D66: ='2024 FALL CALCULATOR'!E79 -> 0 | E66: ='2024 FALL CALCULATOR'!H79 -> 0 | F66: ='2024 FALL CALCULATOR'!I79 -> 0 | G66: ='2024 FALL CALCULATOR'!P79 -> 
B67: ='2024 FALL CALCULATOR'!C80 -> Terradex™ Crabgrass & Broadleaf (2.5 gal) | C67: ='2024 FALL CALCULATOR'!D80 -> 2.5 gal.jug | D67: ='2024 FALL CALCULATOR'!E80 -> 0 | E67: ='2024 FALL CALCULATOR'!H80 -> 0 | F67: ='2024 FALL CALCULATOR'!I80 -> 0 | G67: ='2024 FALL CALCULATOR'!P80 -> 
B68: ='2024 FALL CALCULATOR'!C81 -> 26 GT® | C68: ='2024 FALL CALCULATOR'!D81 -> 2.5 gal. jug | D68: ='2024 FALL CALCULATOR'!E81 -> 0 | E68: ='2024 FALL CALCULATOR'!H81 -> 0 | F68: ='2024 FALL CALCULATOR'!I81 -> 0 | G68: ='2024 FALL CALCULATOR'!P81 -> 
B69: ='2024 FALL CALCULATOR'!C82 -> Chipco® Choice | C69: ='2024 FALL CALCULATOR'!D82 -> 50 lb. bag | D69: ='2024 FALL CALCULATOR'!E82 -> 0 | E69: ='2024 FALL CALCULATOR'!H82 -> 0 | F69: ='2024 FALL CALCULATOR'!I82 -> 0 | G69: ='2024 FALL CALCULATOR'!P82 -> 
B70: ='2024 FALL CALCULATOR'!C83 -> Dylox 420 SL | C70: ='2024 FALL CALCULATOR'!D83 -> 2.5 gal jug | D70: ='2024 FALL CALCULATOR'!E83 -> 0 | E70: ='2024 FALL CALCULATOR'!H83 -> 0 | F70: ='2024 FALL CALCULATOR'!I83 -> 0 | G70: ='2024 FALL CALCULATOR'!P83 -> 
B71: ='2024 FALL CALCULATOR'!C84 -> Forbid® | C71: ='2024 FALL CALCULATOR'!D84 -> 8 fl.oz. bottle | D71: ='2024 FALL CALCULATOR'!E84 -> 0 | E71: ='2024 FALL CALCULATOR'!H84 -> 0 | F71: ='2024 FALL CALCULATOR'!I84 -> 0 | G71: ='2024 FALL CALCULATOR'!P84 -> 
B72: ='2024 FALL CALCULATOR'!C85 -> Merit® 75 WSP | C72: ='2024 FALL CALCULATOR'!D85 -> 4x1.6 oz | D72: ='2024 FALL CALCULATOR'!E85 -> 0 | E72: ='2024 FALL CALCULATOR'!H85 -> 0 | F72: ='2024 FALL CALCULATOR'!I85 -> 0 | G72: ='2024 FALL CALCULATOR'!P85 -> 
B73: ='2024 FALL CALCULATOR'!C86 -> Merit 2F | C73: ='2024 FALL CALCULATOR'!D86 -> 1 gal. jug | D73: ='2024 FALL CALCULATOR'!E86 -> 0 | E73: ='2024 FALL CALCULATOR'!H86 -> 0 | F73: ='2024 FALL CALCULATOR'!I86 -> 0 | G73: ='2024 FALL CALCULATOR'!P86 -> 
B74: ='2024 FALL CALCULATOR'!C87 -> Prograss® EC | C74: ='2024 FALL CALCULATOR'!D87 -> 2.5 gal jug | D74: ='2024 FALL CALCULATOR'!E87 -> 0 | E74: ='2024 FALL CALCULATOR'!H87 -> 0 | F74: ='2024 FALL CALCULATOR'!I87 -> 0 | G74: ='2024 FALL CALCULATOR'!P87 -> 
B75: ='2024 FALL CALCULATOR'!C88 -> Proxy® | C75: ='2024 FALL CALCULATOR'!D88 -> 2.5 gal. jug | D75: ='2024 FALL CALCULATOR'!E88 -> 0 | E75: ='2024 FALL CALCULATOR'!H88 -> 0 | F75: ='2024 FALL CALCULATOR'!I88 -> 0 | G75: ='2024 FALL CALCULATOR'!P88 -> 
B76: ='2024 FALL CALCULATOR'!C89 -> Revolver®(32 oz. bottle) | C76: ='2024 FALL CALCULATOR'!D89 -> 32 oz bottle | D76: ='2024 FALL CALCULATOR'!E89 -> 0 | E76: ='2024 FALL CALCULATOR'!H89 -> 0 | F76: ='2024 FALL CALCULATOR'!I89 -> 0 | G76: ='2024 FALL CALCULATOR'!P89 -> 
B77: ='2024 FALL CALCULATOR'!C90 -> Sencor® 75 | C77: ='2024 FALL CALCULATOR'!D90 -> 5 lb.bottle | D77: ='2024 FALL CALCULATOR'!E90 -> 0 | E77: ='2024 FALL CALCULATOR'!H90 -> 0 | F77: ='2024 FALL CALCULATOR'!I90 -> 0 | G77: ='2024 FALL CALCULATOR'!P90 -> 
B78: ='2024 FALL CALCULATOR'!C91 -> Topchoice® | C78: ='2024 FALL CALCULATOR'!D91 -> 50 lb. bag | D78: ='2024 FALL CALCULATOR'!E91 -> 0 | E78: ='2024 FALL CALCULATOR'!H91 -> 0 | F78: ='2024 FALL CALCULATOR'!I91 -> 0 | G78: ='2024 FALL CALCULATOR'!P91 -> 
F79: =SUM(F20:F78) -> 5478
B82: Summary
B83: Summary is provided as an estimate only. See program rules and conditions.
B86: ='2024 FALL CALCULATOR'!B97 -> Total Before Off Invoice Volume Discounts | G86: ='2024 FALL CALCULATOR'!E97 -> 5478
B87: ='2024 FALL CALCULATOR'!B98 -> Off Invoice Volume Discount | G87: ='2024 FALL CALCULATOR'!E98 -> 0
B88: ='2024 FALL CALCULATOR'!B99 -> Invoice Total | G88: ='2024 FALL CALCULATOR'!E99 -> 5478
B89: Purchase Tier Level Standard calculation assumes order is invoiced by Oct 31, 2024 and will receive 1% Oct bonus to purchase tier rebate | G89: ='2024 FALL CALCULATOR'!E100 -> 0.04
B90: Rebate Total Program Purchase must be a minimum of $5,000 to receive rebates | G90: ='2024 FALL CALCULATOR'!E101 -> 494.12
B91: ='2024 FALL CALCULATOR'!B102 -> Net Total after Rebate | G91: ='2024 FALL CALCULATOR'!E102 -> 4983.88
B92: Rebate % Total Program Purchase must be a minimum of $5,000 to receive rebates | G92: ='2024 FALL CALCULATOR'!E103 -> 0.09020080321
B93: ='2024 FALL CALCULATOR'!B104 -> Total Savings (Rebates + Off Invoice Volume Discounts) | G93: ='2024 FALL CALCULATOR'!E104 -> 494.12
B94: ='2024 FALL CALCULATOR'!B105 -> Total Savings % (Rebates + Off Invoice Volume Discounts) | G94: ='2024 FALL CALCULATOR'!E105 -> 0.09020080321
B96: =CONCATENATE("Estimated MER points to be earned in the Product Cart: ",TEXT(IF(AND(G90 <>"", G90 > 0),G90*100, 0),"#,##0")) -> Estimated MER points to be earned in the Product Cart: 49,412

Sheet Pricing (hidden)
A1: 1 | B1: =A1+1 -> 2 | C1: =B1+1 -> 3 | D1: 4 | E1: 5
E3: In Season Price
A4: Product | B4: National | C4: CA | D4: WA | E4: National | F4: CA | G4: WA | H4: Dist Suggested Min Price (DSMP)
A5: 26 GT® | B5: 503.9 | C5: 503.9 | D5: 503.9 | E5: 503.9 | F5: 503.9 | G5: 503.9
A6: Acclaim Accelerate (0.5 gal) | B6: 45.65 | C6: 45.65 | D6: 45.65 | E6: 45.65 | F6: 45.65 | G6: 45.65 | H6: 55
A7: Acclaim Accelerate (2.5 gal) | B7: 219.95 | C7: 219.95 | D7: 219.95 | E7: 219.95 | F7: 219.95 | G7: 219.95 | H7: 265
A8: Acclaim® Extra (1 gal) | B8: 665.2 | C8: 665.2 | D8: 665.2 | E8: 665.2 | F8: 665.2 | G8: 665.2
A9: Altus (64 fl.oz. bottle), 1-15 | B9: 428.4 | C9: 439.22 | D9: 431.4 | E9: 428.4 | F9: 439.22 | G9: 431.4
A10: Altus (64 fl.oz. bottle), 16-31 | B10: 406.98 | C10: 417.26 | D10: 409.82 | E10: 428.4 | F10: 439.22 | G10: 431.4
A11: Altus (64 fl.oz. bottle), 32+ | B11: 385.56 | C11: 395.3 | D11: 388.26 | E11: 428.4 | F11: 439.22 | G11: 431.4
A12: Armada® 50 WDG | B12: 114 | C12: 114 | D12: 114 | E12: 114 | F12: 114 | G12: 114
A13: Banol® | B13: 1254 | C13: 1285.65 | D13: 1262.8 | E13: 1254 | F13: 1285.65 | G13: 1262.8
A14: Castlon™ (1 gal.) | B14: 2600 | C14: N/A | D14: 2618.2 | E14: 2600 | F14: N/A | G14: 2618.2
A15: Castlon™ (16oz.) | B15: 366.5 | C15: N/A | D15: 369.07 | E15: 366.5 | F15: N/A | G15: 369.07
A16: Celsius | B16: 128.4 | C16: 131.64 | D16: 129.3 | E16: 128.4 | F16: 131.64 | G16: 129.3
A17: Celsius XTRA | B17: 166.4 | C17: N/A | D17: 167.56 | E17: 166.4 | F17: N/A | G17: 167.56
A18: Chipco Signature Stressgard (1-8 units) | B18: 392.8 | C18: 402.72 | D18: 395.54 | E18: 392.8 | F18: 402.72 | G18: 395.54
A19: Chipco Signature Stressgard (9+ units) | B19: 368.8 | C19: 378.12 | D19: 371.38 | E19: 392.8 | F19: 402.72 | G19: 395.54
A20: Chipco® Choice | B20: 161 | C20: 161 | D20: 161 | E20: 161 | F20: 161 | G20: 161
A21: Densicor® | B21: 739.6 | C21: N/A | D21: 744.78 | E21: 739.6 | F21: N/A | G21: 744.78
A22: Dylox 420 SL | B22: 218.75 | C22: 218.75 | D22: 218.75 | E22: 218.75 | F22: 218.75 | G22: 218.75
A23: Exteris® Stressgard® | B23: 366 | C23: 375.25 | D23: 368.55 | E23: 366 | F23: 375.25 | G23: 368.55
A24: Fiata® Stressgard® | B24: 190 | C24: 194.8 | D24: 191.35 | E24: 190 | F24: 194.8 | G24: 191.35
A25: Forbid® | B25: 244.18 | C25: 244.18 | D25: 244.18 | E25: 244.18 | F25: 244.18 | G25: 244.18
A26: Indemnify® (1-2 units) | B26: 1963.6 | C26: 2013.18 | D26: 1977.34 | E26: 1963.6 | F26: 2013.18 | G26: 1977.34
A27: Indemnify® (3+ units) | B27: 1767.2 | C27: 1811.82 | D27: 1779.58 | E27: 1963.6 | F27: 2013.18 | G27: 1977.34
A28: Interface® Stressgard® (1-5 units) | B28: 561 | C28: 575.15 | D28: 564.95 | E28: 561 | F28: 575.15 | G28: 564.95
A29: Interface® Stressgard® (6+ units) | B29: 494 | C29: 506.45 | D29: 497.45 | E29: 561 | F29: 575.15 | G29: 564.95
A30: Merit 2F | B30: 40.15 | C30: 40.15 | D30: 40.15 | E30: 40.15 | F30: 40.15 | G30: 40.15
A31: Merit® 75 WSP | B31: 102.64 | C31: 102.64 | D31: 102.64 | E31: 102.64 | F31: 102.64 | G31: 102.64
A32: Mirage® Stressgard® | B32: 488 | C32: 500.3 | D32: 491.4 | E32: 488 | F32: 500.3 | G32: 491.4
A33: Prograss® EC | B33: 368.25 | C33: 368.25 | D33: 368.25 | E33: 368.25 | F33: 368.25 | G33: 368.25
A34: Proxy® | B34: 102.25 | C34: 102.25 | D34: 102.25 | E34: 102.25 | F34: 102.25 | G34: 102.25
A35: Resilia ™ | B35: 918.87 | C35: N/A | D35: 925.29 | E35: 918.87 | F35: N/A | G35: 925.29
A36: Revolver® (87 oz. bottle) | B36: 758 | C36: 777.14 | D36: 763.3 | E36: 758 | F36: 777.14 | G36: 763.3
A37: Revolver®(32 oz. bottle) | B37: 288.56 | C37: 288.56 | D37: 288.56 | E37: 288.56 | F37: 288.56 | G37: 288.56
A38: Ronstar® FLO 1 to 11 | B38: 552 | C38: 565.95 | D38: 555.85 | E38: 552 | F38: 565.95 | G38: 555.85
A39: Ronstar® FLO 12 to 39 | B39: 453 | C39: 464.45 | D39: 456.15 | E39: 552 | F39: 565.95 | G39: 555.85
A40: Ronstar® FLO 40+ | B40: 393 | C40: 402.9 | D40: 395.75 | E40: 552 | F40: 565.95 | G40: 555.85
A41: Sencor® 75 | B41: 586 | C41: 586 | D41: 586 | E41: 586 | F41: 586 | G41: 586
A42: Signature XTRA Stressgard (1 to 23) | B42: 210.4 | C42: 215.72 | D42: 211.88 | E42: 210.4 | F42: 215.72 | G42: 211.88
A43: Signature XTRA Stressgard (24+) | B43: 192.8 | C43: 197.66 | D43: 194.14 | E43: 210.4 | F43: 215.72 | G43: 211.88
A44: Specticle® FLO (1-6 units) | B44: 1968.4 | C44: 2018.1 | D44: 1982.18 | E44: 2072 | F44: 2117.06 | G44: 2086.5
A45: Specticle® FLO (14-25 units) | B45: 1657.6 | C45: 1699.46 | D45: 1669.2 | E45: 1778.4 | F45: 1817.08 | G45: 1790.84
A46: Specticle® FLO (7-13 units) | B46: 1895.88 | C46: 1943.76 | D46: 1909.16 | E46: 2072 | F46: 2117.06 | G46: 2086.5
A47: Specticle® FLO (26+ units) | B47: 1533.28 | C47: 1572 | D47: 1544.02 | E47: 1778.4 | F47: 1817.08 | G47: 1790.84
A48: Specticle® G | B48: 128 | C48: 131 | D48: 129 | E48: 128 | F48: 131 | G48: 129
A49: Tartan® Stressgard® (1 to 5 units) | B49: 1033 | C49: 1059.1 | D49: 1040.25 | E49: 1033 | F49: 1059.1 | G49: 1040.25
A50: Tartan® Stressgard® 6+ | B50: 940 | C50: 963.75 | D50: 946.6 | E50: 1033 | F50: 1059.1 | G50: 1040.25
A51: Terradex™ Crabgrass & Broadleaf (1 gal) | B51: 94.62 | C51: 94.62 | D51: 94.62 | E51: 94.62 | F51: 94.62 | G51: 94.62 | H51: 114
A52: Terradex™ Crabgrass & Broadleaf (2.5 gal) | B52: 226.18 | C52: 226.18 | D52: 226.18 | E52: 226.18 | F52: 226.18 | G52: 226.18 | H52: 272.5
A53: Terradex™ Power Premix (2.5 gal) | B53: 186.75 | C53: 186.75 | D53: 186.75 | E53: 186.75 | F53: 186.75 | G53: 186.75 | H53: 225
A54: Terradex™ Power Premix (30 gal) | B54: 2041.8 | C54: 2041.8 | D54: 2041.8 | E54: 2041.8 | F54: 2041.8 | G54: 2041.8 | H54: 2460
A55: Terradex™ Quick Strike (1 gal) | B55: 66.4 | C55: 66.4 | D55: 66.4 | E55: 66.4 | F55: 66.4 | G55: 66.4 | H55: 80
A56: Terradex™ Quick Strike (2.5 gal) | B56: 157.7 | C56: 157.7 | D56: 157.7 | E56: 157.7 | F56: 157.7 | G56: 157.7 | H56: 190
A57: Terradex™ Quick Strike (30 gal) | B57: 1792.8 | C57: 1792.8 | D57: 1792.8 | E57: 1792.8 | F57: 1792.8 | G57: 1792.8 | H57: 2160
A58: Tetrino® | B58: 498 | C58: 510.2 | D58: 501.48 | E58: 498 | F58: 510.2 | G58: 501.48
A59: Topchoice® | B59: 63 | C59: 63 | D59: 63 | E59: 63 | F59: 63 | G59: 63
A60: Tribute® Total | B60: 413.6 | C60: 424.04 | D60: 416.5 | E60: 413.6 | F60: 424.04 | G60: 416.5
A61: Kontos (1-11 units) | B61: 221.6 | C61: N/A | D61: N/A | E61: 221.6 | F61: N/A | G61: N/A
A62: Kontos (12-29 units) | B62: 210.52 | C62: N/A | D62: N/A | E62: 221.6 | F62: N/A | G62: N/A
A63: Kontos (30+ units) | B63: 199.44 | C63: N/A | D63: N/A | E63: 221.6 | F63: N/A | G63: N/A
